Cogmind - Beta 13 @@@ ROGUE MODE // 2024.06.02 @ 15:11:13 Player: CrossedViper Result: Destroyed by H-88 Terminator with KE Penetrator Performance ------------- Evolutions (9) 4500 Regions Visited (31) 6200 Robots Destroyed (543) 2715 Value Destroyed (29794) 29794 Prototype IDs (65) 1300 Alien Tech Used (0) 0 Bonus (23783) 23783 TOTAL SCORE: 68292 Bonus ------- High Alert Combat Kills 6125 Follower Combat Kills 4234 Entered Garrisons 1600 Used RIF Installer 4000 Network Hubs Disabled 200 Aligned with FarCom 300 Built Enhanced Grunts 300 A7 Reached Mainframe 300 Met R17 at Cetus 500 Met R17 at Research 2000 Destroyed MAIN.C Guards 500 Met MAIN.C 5000 Destroyed MAIN.C Shell 5000 Friendly Fire -6276 Cogmind --------- Core Integrity 0/1600 Matter 280/300 Energy 60/100 System Corruption 52% Temperature Cool (0) Movement Core (100) Ox1 Location -1/Command Parts ------- > --- POWER (3) -------- (None) > --- PROPULSION (6) --- (None) > --- UTILITY (12) ----- Experimental Power Shielding > --- WEAPON (4) ------- XL Autogun Subcomponent > --- INVENTORY (5) ---- Zero-point Reactor Long-range Terrain Scanner Advanced Force Field Peak State ------------ > --- POWER ------------ Improved Quantum Reactor Zero-point Reactor Zero-point Reactor > --- PROPULSION ------- Armored Heavy Treads Armored Heavy Treads Armored Heavy Treads > --- UTILITY ---------- Advanced Heat Sink Advanced Heat Sink Huge Storage Unit Advanced Energy Well Experimental Targeting Computer Experimental Core Analyzer Advanced Weapon Cycler Advanced Powered Armor Advanced Powered Armor Thermal Barrier Advanced Force Field Experimental Field Recycling Unit > --- WEAPON ----------- XL Autogun Array > --- INVENTORY -------- Reinforced Quantum Reactor Zero-point Reactor Centrium Heavy Treads Advanced Heat Sink Experimental Cooling System Small Battery Quantum Shading Machine Long-range Terrain Scanner Improved Transmission Jammer Improved Transmission Jammer Experimental Power Shielding Advanced Powered Armor Advanced Powered Armor Advanced Force Field Advanced Force Field Multirail Multirail Tiamat Missile Launcher Advanced Remote Datajack [Rating: 214] Favorites ----------- Power Reinforced Deuterium Engine Engine Reinforced Deuterium Engine Power Core Enhanced Nuclear Core Reactor Light Quantum Reactor Propulsion Light Treads Treads Light Treads Leg Centrium Leg Utility Huge Storage Unit Device Advanced Heat Sink Storage Huge Storage Unit Processor Core Analyzer Hackware Relay Coupler [NC] Protection Advanced Powered Armor Weapon Heavy Plasma Cannon Energy Gun Plasma Rifle Energy Cannon Heavy Plasma Cannon Ballistic Gun Helical Railgun Ballistic Cannon Heavy Linear Accelerator Launcher Grenade Launcher Special Weapon Remote Datajack Slashing Weapon Katana Build | -11 -10 -10 -10 -9 -8 -8 -8 -8 -7 -7 -7 -7 -7 -7 -7 -7 -6 -6 -6 -6 -5 -5 -4 -4 -4 -4 -4 -3 -2 -1 -1 ------- Run | Yrd Mat Min Exi Min Mat Gar Mat Gar Fac Was Fac Gar Fac Gar Fac Gar Fac Gar Fac Gar Fac Gar Fac Ext Cet Arc Hub Res Res Acc Com Slots Evolved 18 | . . . . . 4 . . . 2 . . . . . . . 2 . . . 2 . 2 . . . . 2 2 2 . Power 2 | . . . . . . . . . . . . . . . . . . . . . . . 1 . . . . . 1 . . Propulsion 4 | . . . . . 2 . . . . . . . . . . . . . . . . . . . . . . 2 . . . Utility 10 | . . . . . . . . . 2 . . . . . . . 2 . . . 2 . 1 . . . . . 1 2 . Weapon 2 | . . . . . 2 . . . . . . . . . . . . . . . . . . . . . . . . . . Parts Attached 493 | 7 19 6 7 8 19 25 3 6 26 . 8 16 3 17 13 16 1 18 15 21 1 35 6 8 7 10 14 19 67 35 37 Power 48 | 1 . . . 1 3 2 . 1 . . 3 . . . . 1 . . 1 1 . 4 1 1 1 . 3 3 12 5 4 Engine 12 | 1 . . . 1 3 2 . 1 . . 2 . . . . 1 . . 1 . . . . . . . . . . . . Core 4 | . . . . . . . . . . . 1 . . . . . . . . . . . . . . . 2 1 . . . Reactor 32 | . . . . . . . . . . . . . . . . . . . . 1 . 4 1 1 1 . 1 2 12 5 4 Propulsion 80 | 2 3 1 . 3 5 9 . 2 7 . . 4 . 1 1 4 . 1 . 2 . 13 . . 2 3 . 5 5 5 2 Treads 72 | 2 3 1 . 3 5 9 . 2 7 . . 4 . 1 1 4 . 1 . 2 . 5 . . 2 3 . 5 5 5 2 Leg 8 | . . . . . . . . . . . . . . . . . . . . . . 8 . . . . . . . . . Wheel . | . . . . . . . . . . . . . . . . . . . . . . . . . . . . . . . . Hover . | . . . . . . . . . . . . . . . . . . . . . . . . . . . . . . . . Flight . | . . . . . . . . . . . . . . . . . . . . . . . . . . . . . . . . Utility 192 | 2 3 5 3 . 1 6 . . 10 . 2 6 1 5 6 8 1 8 7 11 1 11 4 4 . 7 3 5 34 23 15 Device 116 | 1 1 3 . . . 4 . . 5 . 1 6 . 5 4 8 . 4 4 4 1 3 2 . . 3 . 5 28 15 9 Storage 11 | 1 2 . 2 . . 1 . . 1 . . . . . . . . . 1 . . . . . . 1 1 . . . 1 Processor 13 | . . . . . . . . . 3 . 1 . . . 1 . . . . 1 . 2 . . . . 1 . 1 2 1 Hackware 28 | . . . . . 1 1 . . 1 . . . 1 . 1 . . 4 2 6 . 4 2 4 . . . . 1 . . Protection 24 | . . 2 1 . . . . . . . . . . . . . 1 . . . . 2 . . . 3 1 . 4 6 4 Artifact . | . . . . . . . . . . . . . . . . . . . . . . . . . . . . . . . . Weapon 173 | 2 13 . 4 4 10 8 3 3 9 . 3 6 2 11 6 3 . 9 7 7 . 7 1 3 4 . 8 6 16 2 16 Energy Gun 41 | 2 7 . . . 3 1 . . . . . . . 5 2 2 . 5 2 . . 4 . . 2 . . 1 1 . 4 Energy Cannon 49 | . 1 . . . . 2 2 3 4 . 2 3 1 5 3 . . 1 3 3 . . . . . . 3 2 10 1 . Ballistic Gun 37 | . 1 . 2 1 6 3 . . . . 1 . . . . . . . 1 1 . 1 . 1 2 . 4 1 3 . 9 Ballistic Cannon 7 | . 2 . . 2 . . . . . . . . . . . . . . . 1 . 1 . . . . . . . . 1 Launcher 19 | . 2 . . 1 . . 1 . 4 . . 3 . 1 . 1 . 2 . . . . . 1 . . . 1 . 1 1 Special Weapon 15 | . . . . . . . . . 1 . . . 1 . 1 . . 1 1 2 . 1 1 1 . . 1 1 2 . 1 Impact Weapon . | . . . . . . . . . . . . . . . . . . . . . . . . . . . . . . . . Slashing Weapon 5 | . . . 2 . 1 2 . . . . . . . . . . . . . . . . . . . . . . . . . Piercing Weapon . | . . . . . . . . . . . . . . . . . . . . . . . . . . . . . . . . Special Melee Weapon . | . . . . . . . . . . . . . . . . . . . . . . . . . . . . . . . . Unidentified Prototypes 37 | . . 2 . . 2 . . . 1 . 3 1 . . . . . . . . . 6 1 2 1 4 3 2 2 . 7 Corrupted Parts 13 | . . . 4 . . . 1 . . . . . . . . . . . . . . . . . . 1 . 1 1 . 5 System Corruption 76 | . . . 19 . . . 8 . . . . . . . . . . . . . . . . . . 6 . 9 5 . 29 Parts Lost 69 | . 1 1 . 6 5 2 . 2 . . . . . . . . . 2 . . . 1 1 . . . 5 . 9 5 29 Power 10 | . . . . 1 1 . . . . . . . . . . . . . . . . . . . . . 2 . 4 . 2 Propulsion 13 | . . 1 . 3 2 2 . 1 . . . . . . . . . . . . . . . . . . . . . . 4 Utility 22 | . . . . . . . . . . . . . . . . . . . . . . . 1 . . . 2 . 1 3 15 Weapon 24 | . 1 . . 2 2 . . 1 . . . . . . . . . 2 . . . 1 . . . . 1 . 4 2 8 Highest Loss Streak 25 | . 1 1 . 4 4 1 . 2 . . . . . . . . . 2 . . . 1 1 . . . 3 . 3 2 25 To Critical Strikes 1 | . . . . . . . . . . . . . . . . . . . . . . . . . . . . . 1 . . Average Slot Usage (%) 89 | . 99 99 94 100 89 99 100 98 99 100 99 84 84 83 83 85 80 81 86 86 82 87 89 86 88 88 88 87 81 84 76 Engine 3 | . 14 14 14 14 8 9 9 9 7 7 5 . . . . 3 6 6 6 . . . . . . . . . . . . Core 1 | . . . . . . . . . . . 1 7 7 7 7 3 . . . . . . . . . . . 4 . . . Reactor 3 | . . . . . . . . . . . . . . . . . . . . 5 5 4 8 7 10 10 9 4 11 11 11 Treads 18 | . 27 28 28 28 30 35 36 34 29 30 30 15 15 15 14 16 13 13 13 19 17 4 . . 9 10 10 16 13 11 11 Leg 1 | . . . . . . . . . . . . . . . . . . . . . . 14 21 21 2 . . . . . . Device 10 | . 13 9 . . . 4 9 9 8 . 1 7 7 14 14 14 13 20 19 13 17 12 8 . . 2 . 8 17 18 23 Storage 7 | . 14 14 14 14 9 9 9 9 7 7 7 7 7 7 7 7 6 6 6 6 5 5 5 5 5 5 5 4 4 4 4 Processor 6 | . . . . . . . . . 13 15 13 7 7 7 7 7 6 6 6 6 5 8 15 15 15 10 10 4 4 10 4 Hackware 6 | . . . . . 4 4 . . . 7 7 7 7 . . . . . 6 12 11 14 14 24 26 26 26 19 9 7 3 Protection 1 | . . 4 14 14 4 . . . . . . . . . . . 6 1 . . . 1 . . . 1 5 4 1 5 7 Energy Gun 4 | . 12 . . . 10 8 . . . . . . . 5 19 15 13 14 9 1 . 6 8 5 8 5 5 4 2 . 1 Energy Cannon 12 | . 3 14 7 . . 3 18 22 29 23 24 29 27 23 10 15 13 9 5 9 11 2 . . . . 5 3 9 14 5 Ballistic Gun 3 | . . . . 9 18 22 18 13 . . . . . . . . . . 3 1 . . . 1 5 10 7 9 3 . 3 Ballistic Cannon 1 | . 10 14 7 14 . . . . . . . . . . . . . . . 4 5 5 4 . . . . . . . . Special Weapon 1 | . . . . . . . . . . 7 5 . 2 . . . . . 5 2 . 1 1 4 5 5 1 . 1 . . Naked Turns . | . . . . . . . . . . . . . . . . . . . . . . . . . . . . . . . . Heaviest Build 239 | 14 54 53 53 57 61 78 85 97 136 128 130 130 129 129 115 122 140 140 120 141 142 149 161 127 133 131 148 139 206 239 239 Greatest Support 240 | 40 40 40 40 40 80 90 90 100 100 80 80 150 150 150 150 150 150 150 150 150 115 155 120 120 150 150 150 230 240 235 200 Greatest Overweight (x) 4 | . 1 1 1 2 . 1 . 1 1 1 1 3 . . . 1 . . . 1 1 4 1 1 1 . . . . 1 1 Average Overweight (x) . | . . 1 . 1 . . . . . 1 1 . . . . . . . . . 1 . . . . . . . . . . Largest Inventory Capacity 25 | 8 20 20 20 20 20 20 20 20 25 25 25 25 25 25 25 25 25 25 25 25 25 25 25 25 25 25 25 25 25 25 25 Average Capacity 23 | 7 15 20 18 20 20 20 20 20 20 25 25 25 25 25 25 25 25 25 25 25 25 25 25 25 25 25 25 25 25 25 24 Most Carried 25 | 5 18 20 20 20 20 20 20 20 21 24 25 25 25 25 25 25 23 25 25 25 24 25 25 25 25 25 25 23 25 25 25 Average Carried 21 | 3 11 19 16 16 13 19 19 19 19 21 23 24 24 24 24 24 23 23 25 24 24 24 24 21 24 24 24 21 23 24 20 Final Capacity 25 | 8 20 20 20 20 20 20 20 20 25 25 25 25 25 25 25 25 25 25 25 25 25 25 25 25 25 25 25 25 25 25 5 Final Carried 25 | 4 18 20 20 16 20 20 20 20 19 24 23 25 24 25 25 25 23 25 25 25 24 25 25 21 25 25 25 22 25 21 3 Class Distribution -------------------- 19% | Botlord-Gunner 12% | Mutant 11% | Bothacker-Skirmisher 10% | Scavenger-Gunner 9% | Scavenger-Skirmisher 9% | Bothacker-Gunner 5% | Pyromaniac-Gunner 5% | Bothacker-Tank 4% | Scavenger-Tank 3% | Botlord-Skirmisher Dominant Class ---------------- Mutant | -10/Materials Mutant | -10/Mines Mutant | -10/Exiles Mutant | -9/Mines Skirmisher | -8/Materials Scavenger-Skirmisher | -8/Garrison Scavenger-Skirmisher | -8/Materials Scavenger-Skirmisher | -8/Garrison Bothacker-Gunner | -7/Factory Bothacker-Gunner | -7/Waste Bothacker-Gunner | -7/Factory Bothacker-Skirmisher | -7/Garrison Bothacker-Skirmisher | -7/Factory Bothacker-Skirmisher | -7/Garrison Pyromaniac-Gunner | -7/Factory Pyromaniac-Gunner | -7/Garrison Pyromaniac-Gunner | -6/Factory Botlord-Gunner | -6/Garrison Botlord-Gunner | -6/Factory Botlord-Gunner | -6/Garrison Botlord-Gunner | -5/Factory Botlord-Gunner | -5/Garrison Botlord-Gunner | -4/Factory Botlord-Mutant | -4/Extension Botlord-Gunner | -4/Cetus Botlord-Skirmisher | -4/Archives Botlord-Skirmisher | -4/Hub_04(d) Bothacker-Tank | -3/Research Scavenger-Gunner | -2/Research Scavenger-Gunner | -1/Access Scavenger-Tank | -1/Command Resources | -11 -10 -10 -10 -9 -8 -8 -8 -8 -7 -7 -7 -7 -7 -7 -7 -7 -6 -6 -6 -6 -5 -5 -4 -4 -4 -4 -4 -3 -2 -1 -1 ----------- Run | Yrd Mat Min Exi Min Mat Gar Mat Gar Fac Was Fac Gar Fac Gar Fac Gar Fac Gar Fac Gar Fac Gar Fac Ext Cet Arc Hub Res Res Acc Com Matter Collected 11219 | 260 583 140 . 140 687 992 196 435 222 162 152 467 . 375 239 258 . 408 234 606 . 1065 438 352 86 224 319 249 482 435 1013 Remotely . | . . . . . . . . . . . . . . . . . . . . . . . . . . . . . . . . Salvage Created 27277 | 106 782 163 . 15 841 1208 367 874 1425 579 466 1371 . 735 781 1911 . 1454 275 1120 . 680 753 . . 379 1463 391 2772 4042 2324 Parts 1256 | 9 59 11 . . 53 70 15 42 85 16 15 59 . 34 52 51 . 59 8 49 . 19 21 . . 25 55 14 133 185 117 Haulers Intercepted 13 | . 2 . . . 2 . 1 . 2 . 1 . . . 1 . . . . . . . 1 . . . 2 . . 1 . Recyclers Shooed 10 | . 1 . . . . . 2 . 1 . 2 . . . . . . . . . . . . . . . . . 1 2 1 Parts Field Recycled 49 | . . . . . . . . . . . . . . . . . . . . . . . . . . . . . 17 16 16 Retrieved Matter 1615 | . . . . . . . . . . . . . . . . . . . . . . . . . . . . . 655 389 571 Parts Self-Destructed . | . . . . . . . . . . . . . . . . . . . . . . . . . . . . . . . . Prevented . | . . . . . . . . . . . . . . . . . . . . . . . . . . . . . . . . Kills | -11 -10 -10 -10 -9 -8 -8 -8 -8 -7 -7 -7 -7 -7 -7 -7 -7 -6 -6 -6 -6 -5 -5 -4 -4 -4 -4 -4 -3 -2 -1 -1 ------- Run | Yrd Mat Min Exi Min Mat Gar Mat Gar Fac Was Fac Gar Fac Gar Fac Gar Fac Gar Fac Gar Fac Gar Fac Ext Cet Arc Hub Res Res Acc Com Combat Hostiles Destroyed 447 | . 19 4 . 4 19 23 6 21 26 . 1 25 . 24 11 29 . 34 2 27 . 21 15 . . . 16 5 36 56 23 Melee 2 | . . . . . 1 . . . . . . . . 1 . . . . . . . . . . . . . . . . . Guns 117 | . 4 . . 1 14 19 2 10 . . . . . . 8 13 . 12 2 6 . 2 . . . . 6 2 7 . 9 Cannons 218 | . 6 4 . 1 . 4 3 10 17 . 1 13 . 14 3 8 . 7 . 21 . 19 13 . . . 4 1 20 38 11 AOE 74 | . 9 . . 2 4 . 1 . 9 . . 11 . 8 . 6 . 13 . . . . 2 . . . . . . 9 . Classes Destroyed 24 | 2 6 . . 1 2 3 1 . 5 1 . . . . 1 . . . . . . 1 . . . . . . . 1 . Worker 21 | . 5 . . . 3 . . . . . . . . . 3 . . . 1 . . . 2 . . . 3 . 2 2 . Builder 11 | . 2 . . . 1 . 1 . 3 . . . . . . . . . . . . . . . . . . . 1 3 . Tunneler 2 | 1 1 . . . . . . . . . . . . . . . . . . . . . . . . . . . . . . Hauler 13 | . 2 . . . 2 . 1 . 2 . 1 . . . 1 . . . . . . . 1 . . . 2 . . 1 . Recycler 10 | 1 1 . . . 2 . . . 2 . 1 . . . 1 . . . . . . . . . . . . . . . 2 Mechanic 2 | . . . . . . . . . 1 . . . . . . . . . . . . . 1 . . . . . . . . Operator 9 | . . . . . . . . . . . . . . . 2 . . . . . . . . . . 6 . . . 1 . Watcher 10 | . 3 . . . . . . . 1 . . . . 1 2 1 . . . . . . . . . . 1 . . . 1 Swarmer 112 | . 3 2 . . 8 7 . 4 3 . . 18 . 11 3 14 . 9 . 11 . 5 2 . . . . . 3 4 5 Cutter 3 | . . . . . . . . . 2 . . . . . . . . . . 1 . . . . . . . . . . . Saboteur 1 | . . . . . . . . . . . . . . . . . . . . . . . . . . . . . . 1 . Grunt 132 | . 16 2 . . 8 2 1 12 9 . . 3 . 5 2 6 . 10 2 7 . 10 8 . . . 8 2 5 14 . Brawler 13 | . . . . . . 1 1 . 1 . . . . . 1 3 . . 1 4 . . 1 . . . . . . . . Duelist 6 | . . . . . . 2 1 . . . . . . 1 . 1 . 1 . . . . . . . . . . . . . Protector 1 | . . . . . . . . . 1 . . . . . . . . . . . . . . . . . . . . . . Sentry 38 | . . . . . 2 7 2 2 . . . 4 . 4 . 3 . . . 3 . . . . . . 3 1 2 5 . Demolisher 1 | . . . . . . . . . . . . . . . . . . . . . . . . . . . . 1 . . . Specialist 11 | . . . . . . . . . 4 . . . . . 1 . . 2 . . . . . . . . . . 4 . . Hunter 35 | . . . . . 1 2 . . 1 . . . . . . . . 6 . 1 . 1 . . . . 2 1 8 10 2 Programmer 76 | . . . . . . . 1 3 4 . 1 . . 3 4 1 . 6 . 1 . 3 4 . . . 3 . 12 19 11 Heavy 3 | . . . . . . . . . 1 . . . . . . . . . . . . . . . . . . . . 2 . Behemoth 4 | . . . . . . 2 . . . . . . . . . 1 . . . . . . . . . . . . . 1 . M Guard 2 | . . . . . . . . . . . . . . . . . . . . . . . . . . . . . . . 2 Enhanced Grunt 1 | . . . . . . . . . . . . . . . . . . . . . . . . . . 1 . . . . . Combat Programmer 2 | . . . . . . . . . . . . . . . . . . . . . . . . . . . . . . . 2 Executioner 2 | . . . . . . . . . . . . . . . . . . . . . . 2 . . . . . . . . . Assembled 4 | . . . . 4 . . . . . . . . . . . . . . . . . . . . . . . . . . . Surgeon 2 | . . . . . . . . . . . 2 . . . . . . . . . . . . . . . . . . . . Wasp 1 | . . . . . . . . . . 1 . . . . . . . . . . . . . . . . . . . . . Thug 10 | . . 1 . . . . . . . 1 6 . . . . . . . . . . . . . . . . . 2 . . Savage 1 | . . . . . . . . . . . 1 . . . . . . . . . . . . . . . . . . . . Butcher 1 | . . . . . . . . . . . 1 . . . . . . . . . . . . . . . . . . . . Martyr 3 | . . . . . . . . . . 3 . . . . . . . . . . . . . . . . . . . . . Guerrilla 1 | . . . . . . . . . . . . . . . . . . . . . . . . . . 1 . . . . . Infiltrator 2 | . . . . . . . . . . . . . . . . . . 1 1 . . . . . . . . . . . . Best Kill Streak 12 | 2 7 2 . 3 12 4 3 5 5 . 1 7 . 10 4 8 . 8 2 8 . 6 7 . . 4 5 2 6 11 5 Combat Bots Only 11 | . 5 2 . 3 5 4 2 5 5 . 1 7 . 10 4 7 . 8 2 8 . 6 5 . . . 3 2 6 11 5 Max Kills in Single Turn 9 | 1 2 1 . 2 2 1 2 2 4 2 9 4 . 2 2 4 . 5 1 2 . 1 3 . . 2 2 1 1 4 2 Gunslinging 1 | . . . . . 1 . . . . . . . . . . 1 . . . . . . . . . . . . . . . Exploded 4 | . 1 . . 2 2 . 1 . 4 . . 4 . 2 . 4 . 4 . . . . 2 . . . . . . 4 . Melee 1 | . . . . . 1 . . . . . . . . 1 . . . . . . . . . . . . . . . . . Uniques/NPCs Destroyed 1 | . . . . . . . . . . . . . . . . . . . . . . . . . . . . . . . 1 MAIN.C Shell (-1/Command) Combat | -11 -10 -10 -10 -9 -8 -8 -8 -8 -7 -7 -7 -7 -7 -7 -7 -7 -6 -6 -6 -6 -5 -5 -4 -4 -4 -4 -4 -3 -2 -1 -1 -------- Run | Yrd Mat Min Exi Min Mat Gar Mat Gar Fac Was Fac Gar Fac Gar Fac Gar Fac Gar Fac Gar Fac Gar Fac Ext Cet Arc Hub Res Res Acc Com Hostile Shots Fired 2538 | . 52 19 . 30 92 127 19 69 54 . . 93 18 145 31 96 . 99 26 145 . 117 22 8 2 . 80 46 284 360 504 Missed 760 | . 17 4 . 1 30 37 7 19 21 . . 34 7 35 10 23 . 18 6 51 . 30 7 3 . . 22 16 54 183 125 Intercepted 6 | . . . . . . . . . . . . . . . . . . . . . . . . . . . . . . . 6 Damage Taken 34161 | . 467 202 . 973 895 734 177 686 961 6 210 789 87 929 323 768 . 1383 270 1047 . 1635 514 281 42 . 2070 658 4976 4487 8591 Core 3698 | . 75 19 . 145 38 91 29 24 116 . 22 59 11 64 61 100 . 111 37 136 . 182 97 22 13 . 205 74 343 189 1435 Absorbed by Shields 4526 | . . . . . . . . . 13 . . . . 352 . 177 . 296 . 277 . 62 . 37 41 . . . 735 . 2536 Reduced by Siege Mode 1057 | . . . . . . . . . . . . 49 . 53 . 5 . 50 . 16 . . . . . . 11 . 514 231 128 Redirected to Shielding 92 | . . 1 . 30 3 . . . . . . . . . . . . . . . . . . . . . . . 18 . 40 Ignored by Resistances 874 | . . . . . . . . . . . . . . 27 . 32 . . . 19 . 18 . . . . . 58 78 . 642 Regen/Repaired (Parts) 662 | . 81 . . . . . . . . 30 . . . . 347 . . . . . . . 204 . . . . . . . . Core Remaining (%) 66 | 100 . . . 4 . . . 66 . . . . . . . 38 . . . 66 . 81 . . . . 70 94 76 . . Volleys Fired 1474 | 2 72 17 . 17 51 79 13 47 37 10 12 53 7 43 31 75 . 60 27 56 . 83 34 48 3 17 57 28 259 108 128 Largest 4 | 2 2 2 . 2 4 4 4 4 4 3 4 4 4 4 4 4 . 4 3 4 . 3 1 1 3 3 4 4 4 4 4 Hottest 480 | 80 99 99 . 78 160 201 235 235 360 270 360 368 358 358 310 310 . 310 224 273 . 253 83 39 240 150 210 196 480 480 360 Shots Fired 3046 | 4 122 27 1 31 130 275 46 152 119 32 35 147 11 109 90 241 . 160 45 120 . 110 34 48 5 49 101 42 274 279 207 Gun 1275 | 4 33 . 1 8 126 247 24 70 . . . . . . 61 122 . 85 17 34 . 32 3 . 5 49 63 26 118 . 147 Cannon 1580 | . 70 27 . 20 . 28 21 82 114 32 33 139 5 101 22 117 . 65 18 73 . 57 28 . . . 33 15 152 273 55 Launcher 69 | . 19 . . 3 4 . 1 . 5 . . 8 . 8 . 2 . 7 . . . . . 1 . . . . . 6 5 Special 122 | . . . . . . . . . . . 2 . 6 . 7 . . 3 10 13 . 21 3 47 . . 5 1 4 . . Kinetic 844 | . 64 10 1 28 83 176 24 70 . . . . . . . . . . 5 31 . 47 28 . 2 34 44 12 57 . 128 Thermal 1887 | 2 8 17 . . 43 99 21 82 114 32 33 139 5 101 83 239 . 150 30 76 . 42 3 . 3 15 20 14 189 273 54 Explosive 69 | . 19 . . 3 4 . 1 . 5 . . 8 . 8 . 2 . 7 . . . . . 1 . . . . . 6 5 Electromagnetic 124 | 2 31 . . . . . . . . . . . . . . . . . . . . . . . . . 32 15 24 . 20 Robot Hit Streak 45 | 3 9 7 . 4 6 16 10 6 14 11 13 22 7 17 13 32 . 28 6 14 . 15 12 9 5 13 13 19 45 30 29 Robot Miss Streak 12 | . 4 2 . 3 12 3 2 6 3 1 3 2 1 4 2 3 . 3 5 5 . 3 2 1 . 2 3 2 4 3 5 Penetration Max 1 | . . . . . . . . . . . . . . . . . . . . 1 . . . . . 1 1 1 1 . 1 Secondary Targets 8 | . 1 . . . 2 1 . . . . . . . . . 1 . 1 . . . 1 . . . . . . . . 1 Max Gunslinging Chain 1 | . 1 . . . 1 1 . . . . . . . . . 1 . 1 . . . 1 . . . . . . . . 1 Capacitor 188 | . . . . . . . . . . . . . . . . . . . . . . . . . . . . . 181 7 . Shots Hit Robots 1809 | 3 57 16 . 16 61 162 29 61 59 22 16 66 9 54 52 142 . 87 22 65 . 75 24 38 4 32 67 26 194 173 177 Core Hits 950 | 2 45 8 . 8 52 54 13 28 38 10 18 49 1 32 26 77 . 62 9 37 . 24 15 3 . 16 31 10 54 90 138 Critical Kills 22 | . . . . . . . . 1 . 2 . 3 . 1 . . . . . . . . . . . 2 3 . 3 6 1 Critical Parts Destroyed 10 | . . . . . . 1 . . . . . . . . . . . . . . . . . . . 2 2 . 1 . 4 Critical Strikes 88 | . 2 . . . 3 11 . 1 . 2 . 3 . 1 3 13 . 6 1 7 . 6 2 . . 4 5 . 5 6 7 Burn 39 | . . . . . 3 9 . . . . . . . . 3 13 . 6 1 4 . . . . . . . . . . . Meltdown 17 | . . . . . . . . 1 . 2 . 3 . 1 . . . . . . . . . . . . . . 3 6 1 Destroy 16 | . . . . . . 1 . . . . . . . . . . . . . . . . . . . 4 5 . 1 . 5 Blast 12 | . 1 . . . . . . . . . . . . . . . . . . 3 . 6 2 . . . . . . . . Corrupt 3 | . 1 . . . . . . . . . . . . . . . . . . . . . . . . . . . 1 . 1 Sever 1 | . . . . . . 1 . . . . . . . . . . . . . . . . . . . . . . . . . Melee Attacks 22 | . . . . . 8 14 . . . . . . . . . . . . . . . . . . . . . . . . . Impact . | . . . . . . . . . . . . . . . . . . . . . . . . . . . . . . . . Slashing 22 | . . . . . 8 14 . . . . . . . . . . . . . . . . . . . . . . . . . Piercing . | . . . . . . . . . . . . . . . . . . . . . . . . . . . . . . . . Sneak Attacks . | . . . . . . . . . . . . . . . . . . . . . . . . . . . . . . . . Combat Hostiles . | . . . . . . . . . . . . . . . . . . . . . . . . . . . . . . . . Follow-up Attacks . | . . . . . . . . . . . . . . . . . . . . . . . . . . . . . . . . Damage Inflicted 74789 | 59 1903 298 . 556 1507 3238 1002 2070 3094 871 2370 3488 93 2579 1274 3997 . 3685 383 2380 . 3827 2717 270 96 1003 2930 856 7572 10887 9784 Guns 23631 | 28 296 . . 102 932 2569 264 584 . . . . . . 1020 1883 . 1303 212 509 . 707 . . 96 1003 1261 420 2808 . 7634 Cannons 37090 | . 659 298 . 211 . 375 559 1486 2147 871 656 2249 93 1476 235 1554 . 906 125 1843 . 3120 2287 . . . 964 436 4706 7958 1876 Explosions 13128 | 30 941 . . 243 478 . 179 . 901 . 1709 1239 . 1092 . 474 . 1467 . . . . 427 250 . . 579 . . 2856 263 Melee 378 | . . . . . 93 285 . . . . . . . . . . . . . . . . . . . . . . . . . Ramming 562 | 1 7 . . . 4 9 . . 46 . 5 . . 11 19 86 . 9 46 28 . . 3 20 . . 126 . 58 73 11 Kinetic 21076 | . 572 121 . 313 512 1569 264 584 . . . . . . . . . . 61 1214 . 2881 2287 . 47 678 878 271 1388 . 7436 Thermal 39180 | 30 126 177 . . 420 1375 559 1486 2147 871 2365 2249 93 1476 1255 3437 . 2209 276 1138 . 946 427 . 49 325 423 149 5372 7958 1842 Explosive 10120 | . 902 . . 243 478 . 179 . 901 . . 1239 . 1092 . 474 . 1467 . . . . . 250 . . . . . 2632 263 Electromagnetic 3473 | 28 296 . . . . . . . . . . . . . . . . . . . . . . . . . 1503 436 754 224 232 Impact . | . . . . . . . . . . . . . . . . . . . . . . . . . . . . . . . . Slashing 378 | . . . . . 93 285 . . . . . . . . . . . . . . . . . . . . . . . . . Piercing . | . . . . . . . . . . . . . . . . . . . . . . . . . . . . . . . . Highest Corruption 52 | . . . 19 19 3 4 12 19 2 2 5 5 5 6 8 3 . 7 7 7 . . 4 4 4 6 10 9 34 . 52 Average Corruption 7 | . . . 13 19 3 3 5 14 1 2 3 5 5 5 6 3 . 4 7 7 . . 3 4 4 3 1 9 24 . 11 Corruption Purged 15 | . . . . . . . . . . . . . . . 5 . . . . . . . . . . 10 . . . . . Corruption Blocked 17 | . . . . . . . . . . . . . . . . . . . . . . . . . . . . . . 17 . Effects 657 | . . . 17 10 3 38 7 51 12 10 16 54 7 40 28 36 . 19 19 76 . . 4 20 7 5 . . 148 . 30 Message Errors 144 | . . . 4 2 1 5 2 9 1 . 4 9 2 15 8 7 . 5 2 15 . . 2 3 3 1 . . 39 . 5 Matter Fused 153 | . . . 5 2 2 5 3 14 5 2 4 17 2 9 6 11 . 7 6 19 . . 1 2 2 2 . . 20 . 7 Heat Flow Errors 67 | . . . 2 1 . 6 . 7 1 3 . 3 . 5 3 3 . 1 2 8 . . . 4 . . . . 16 . 2 Energy Discharges 85 | . . . 2 . . 6 . 3 1 2 3 9 1 2 6 4 . 4 4 8 . . 1 8 . 2 . . 14 . 5 Parts Rejected 7 | . . . . 1 . 1 . . . . . . . . . 1 . . . 2 . . . . . . . . 2 . . Parts Fused 7 | . . . 1 . . 1 . 1 . . . . . . . 1 . . . . . . . . . . . . 2 . 1 Data Loss (minor) 77 | . . . 2 2 . 8 1 4 1 . 4 5 . 4 2 2 . . 2 13 . . . 1 2 . . . 20 . 4 Data Loss (major) 27 | . . . 1 . . 1 . 3 2 1 . 5 1 1 1 3 . . 1 2 . . . 2 . . . . 3 . . Misfires 26 | . . . . 1 . 1 . 3 . 2 1 3 1 1 . 1 . 1 2 5 . . . . . . . . 4 . . Alerts 15 | . . . . . . 2 . 1 1 . . 1 . 3 . 2 . . . 2 . . . . . . . . 3 . . Misdirections 5 | . . . . . . . . . . . . . . . . . . . . . . . . . . . . . 5 . . Weapon Failures 44 | . . . . 1 . 2 1 6 . . . 2 . . 2 1 . 1 . 2 . . . . . . . . 20 . 6 Overload Shots 1 | . . . . . . . . . . . . . . . . . . . . . . . . . 1 . . . . . . Overflow Damage 2589 | . 11 . . 1 7 27 2 56 52 1 118 107 . 37 . 68 . 59 6 51 . 575 443 . . . 7 . 235 480 246 Projectiles 2103 | . 2 . . . . 17 2 56 52 1 10 14 . 20 . 4 . 9 . 51 . 575 413 . . . 7 . 235 394 241 Explosions 460 | . 9 . . 1 . . . . . . 108 93 . 17 . 64 . 50 . . . . 30 . . . . . . 83 5 Melee 26 | . . . . . 7 10 . . . . . . . . . . . . 6 . . . . . . . . . . 3 . Knockbacks 26 | . 2 1 . 5 1 . . . . . . . . 1 . 2 . . 1 . . 9 3 . . . . . 1 . . Impact 7 | . . . . . 1 . . . . . . . . 1 . 2 . . 1 . . . 1 . . . . . 1 . . Kinetic 17 | . 2 1 . 5 . . . . . . . . . . . . . . . . . 8 1 . . . . . . . . Secondary 2 | . . . . . . . . . . . . . . . . . . . . . . 1 1 . . . . . . . . Self-Inflicted Damage 1311 | . 106 . . 40 36 . 6 . 121 . 144 77 . 26 . . . 189 . . . . 113 19 . . 98 . . 31 305 Shots 30 | . 5 . . 1 3 . 1 . 2 . 2 2 . 1 . . . 5 . . . . 1 1 . . 1 . . 1 4 Rammed 44 | 1 3 . . . 2 1 . . 3 . 1 . . . 1 12 . 2 1 2 . . . . . . 6 . 5 2 2 Targets Rammed 55 | 1 3 . . . 2 1 . . 5 . 1 . . 1 2 12 . 2 1 2 . 1 1 2 . . 8 . 5 3 2 Kicked 4 | . . . . . . . . . . . . . . . . . . . . . . 1 1 2 . . . . . . . Crushed 7 | . . . . . . . . . 2 . . . . 1 1 . . . . . . . . . . . 2 . . 1 . Highest Temperature 510 | 36 162 316 175 232 405 326 240 423 365 358 421 432 198 376 355 428 . 444 193 286 . 327 266 222 192 406 367 228 510 465 318 Average Temperature 123 | 20 41 109 72 119 141 113 104 148 143 117 130 138 103 134 125 145 . 117 89 105 . 113 88 107 86 139 99 76 127 166 78 Received Heat Transfer 3294 | . 147 69 . . 360 153 63 189 139 . 27 72 30 188 18 130 . 193 63 222 . 225 36 18 . . 195 45 112 315 285 Effects 41 | . . 2 . . . 1 . 4 3 . 1 3 . . 1 3 . 2 . 1 . . 1 . . 2 . . 5 11 1 Shutdowns 12 | . . . . . . . . . 1 . . 2 . . . 1 . . . . . . . . . 1 . . 1 6 . Energy Bleed 14 | . . . . . . . . 1 2 . . . . . 1 1 . 1 . 1 . . 1 . . . . . 3 2 1 Interference 7 | . . 2 . . . . . 2 . . . . . . . . . . . . . . . . . . . . 1 2 . Matter Decay 3 | . . . . . . . . . . . 1 1 . . . . . 1 . . . . . . . . . . . . . Short Circuit 1 | . . . . . . . . 1 . . . . . . . . . . . . . . . . . . . . . . . Damage (minor) 4 | . . . . . . 1 . . . . . . . . . 1 . . . . . . . . . 1 . . . 1 . Siege Activations 42 | . . . . . . . . . . . . 5 . 5 2 5 . 5 . 2 . . . . . . 1 . 6 8 3 Total Turns 831 | . . . . . . . . . . . . 99 . 92 19 109 . 152 . 29 . . . . . . 10 . 95 169 57 Longest Duration 81 | . . . . . . . . . . . . 42 . 31 15 55 . 81 . 20 . . . . . . 10 . 34 36 20 Robots Corrupted 15 | . . . . . . . . . . . . . . . . . . . . . . . . . . . 6 2 5 . 2 Combat Hostiles 15 | . . . . . . . . . . . . . . . . . . . . . . . . . . . 6 2 5 . 2 Parts Fried 37 | . 2 . . . . . . . . . . . . . . . . . . . . . . . . . 15 4 10 2 4 Impact Corruptions 3 | . . . . . . . . . . . . . . . . . . . 1 . . . 1 . . . . . . 1 . Robots Melted 26 | . . . . . . . . 1 1 2 . 3 . 1 . 3 . 2 . . . . . . . . . . 4 8 1 Combat Hostiles 21 | . . . . . . . . 1 . 1 . 1 . 1 . 2 . 2 . . . . . . . . . . 4 8 1 Parts Melted 167 | . . . . . 2 5 3 7 11 5 3 10 . 5 13 27 . 26 . 6 . 2 . . . 1 . . 12 27 2 Heat Transferred 54319 | 50 185 370 . . 1221 2916 850 2099 3250 1350 2000 3500 150 2323 2900 8363 . 4642 687 2099 . 1147 250 . 74 389 444 185 4995 6437 1443 Parts Sabotaged . | . . . . . . . . . . . . . . . . . . . . . . . . . . . . . . . . Parts Stolen . | . . . . . . . . . . . . . . . . . . . . . . . . . . . . . . . . Parts Stripped . | . . . . . . . . . . . . . . . . . . . . . . . . . . . . . . . . Power Chain Reactions 2 | 1 1 . . . . . . . . . . . . . . . . . . . . . . . . . . . . . . Alert | -11 -10 -10 -10 -9 -8 -8 -8 -8 -7 -7 -7 -7 -7 -7 -7 -7 -6 -6 -6 -6 -5 -5 -4 -4 -4 -4 -4 -3 -2 -1 -1 ------- Run | Yrd Mat Min Exi Min Mat Gar Mat Gar Fac Was Fac Gar Fac Gar Fac Gar Fac Gar Fac Gar Fac Gar Fac Ext Cet Arc Hub Res Res Acc Com Peak Influence 1504 | 10 523 252 . 17 322 1179 729 1117 638 223 294 1443 848 1016 642 930 510 1504 909 1392 730 1443 1151 620 119 186 539 289 440 1164 938 Initial 789 | . 6 140 . . . 209 574 432 585 223 . 177 757 121 533 98 487 357 789 284 730 483 757 511 35 . 65 190 12 264 744 Average 476 | 2 297 96 . . 151 660 641 845 394 116 92 732 624 597 342 434 505 905 535 742 723 981 1017 176 92 152 251 74 131 445 822 Maximum Alert Level 4 | . 2 1 . . 1 4 3 4 2 1 1 4 3 3 2 3 2 4 3 4 3 4 4 2 . . 2 1 2 4 3 Low Security (%) 29 | 100 35 77 . 100 78 . . . . 54 86 12 21 14 32 16 . . . . . . . 74 100 100 46 85 70 13 . Level 1 20 | . 19 22 . . 21 35 . . 58 45 13 17 . 2 28 36 . 5 47 8 . . . 7 . . 34 14 23 49 . Level 2 22 | . 44 . . . . 21 94 24 41 . . 24 8 53 38 33 100 26 25 43 14 26 . 18 . . 19 . 5 16 1 Level 3 20 | . . . . . . 33 5 70 . . . 12 69 29 . 13 . 40 26 38 85 34 89 . . . . . . 11 98 Level 4 7 | . . . . . . 9 . 5 . . . 32 . . . . . 27 . 9 . 39 10 . . . . . . 7 . Level 5 . | . . . . . . . . . . . . . . . . . . . . . . . . . . . . . . . . High Security . | . . . . . . . . . . . . . . . . . . . . . . . . . . . . . . . . Max Security . | . . . . . . . . . . . . . . . . . . . . . . . . . . . . . . . . Squads Dispatched 84 | . 4 . . 1 5 . 2 . 10 . 3 . 1 . 1 . . . 6 . . . 8 2 . . 7 6 9 14 5 Investigation 14 | . 3 . . . 2 . . . 1 . 1 . . . . . . . . . . . . 1 . . . 3 1 1 1 Extermination 21 | . . . . . . . . . 4 . 1 . 1 . 1 . . . . . . . 1 . . . 1 . 4 4 4 Reinforcement 29 | . 1 . . 1 . . . . 4 . . . . . . . . . 1 . . . 5 1 . . 5 3 4 4 . Assault 6 | . . . . . . . . . 1 . . . . . . . . . . . . . 2 . . . . . . 3 . Garrison 14 | . . . . . 3 . 2 . . . 1 . . . . . . . 5 . . . . . . . 1 . . 2 . Intercept . | . . . . . . . . . . . . . . . . . . . . . . . . . . . . . . . . Searches Triggered . | . . . . . . . . . . . . . . . . . . . . . . . . . . . . . . . . Construction Impeded 4 | . . . . 1 . . . . . . . . . . . . . . . . . . 2 . . . . . 1 . . Haulers Reinforced 3 | . . . . . . . . . 1 . . . . . . . . . . . . . 1 . . . 1 . . . . Active Scanning Responses . | . . . . . . . . . . . . . . . . . . . . . . . . . . . . . . . . Cargo Convoy Interrupts . | . . . . . . . . . . . . . . . . . . . . . . . . . . . . . . . . Alert ID Control Effect 11 | . . . . . . . . . . . . . . . . . . . . . . 1 2 1 2 1 2 2 . . . Stealth | -11 -10 -10 -10 -9 -8 -8 -8 -8 -7 -7 -7 -7 -7 -7 -7 -7 -6 -6 -6 -6 -5 -5 -4 -4 -4 -4 -4 -3 -2 -1 -1 --------- Run | Yrd Mat Min Exi Min Mat Gar Mat Gar Fac Was Fac Gar Fac Gar Fac Gar Fac Gar Fac Gar Fac Gar Fac Ext Cet Arc Hub Res Res Acc Com Distress Signals 27 | . 4 . . 1 2 . . . 1 . . . . . 1 1 . . . . . . 2 2 1 . 3 6 1 2 . Communications Jammed 18 | . . . . . . . . . . . . . . . . . . . . . . . . . . . . 2 16 . . Distress Signals 18 | . . . . . . . . . . . . . . . . . . . . . . . . . . . . 2 16 . . Times Spotted 683 | . 24 6 . 8 25 23 7 19 30 1 6 29 3 22 16 30 . 36 11 48 . 48 38 19 10 10 31 21 54 70 38 Peak Tracking Total 12 | . 4 3 . 3 6 5 3 5 6 1 2 7 2 8 4 10 . 8 3 8 . 10 12 2 5 1 7 9 6 11 12 Tactical Retreats 31 | . . 1 . . . 1 . . . . . . . 2 . 3 . 3 1 3 . 4 2 . . . 2 . 1 5 3 Traps | -11 -10 -10 -10 -9 -8 -8 -8 -8 -7 -7 -7 -7 -7 -7 -7 -7 -6 -6 -6 -6 -5 -5 -4 -4 -4 -4 -4 -3 -2 -1 -1 ------- Run | Yrd Mat Min Exi Min Mat Gar Mat Gar Fac Was Fac Gar Fac Gar Fac Gar Fac Gar Fac Gar Fac Gar Fac Ext Cet Arc Hub Res Res Acc Com Traps Triggered 44 | . 1 1 . . . 1 . 1 4 . . 2 . 1 . 5 . 1 2 6 . 7 . 4 . . . 1 5 1 1 Indirectly . | . . . . . . . . . . . . . . . . . . . . . . . . . . . . . . . . Trap Hack Attempts . | . . . . . . . . . . . . . . . . . . . . . . . . . . . . . . . . Triggered . | . . . . . . . . . . . . . . . . . . . . . . . . . . . . . . . . Disarmed . | . . . . . . . . . . . . . . . . . . . . . . . . . . . . . . . . Reprogrammed . | . . . . . . . . . . . . . . . . . . . . . . . . . . . . . . . . Reused . | . . . . . . . . . . . . . . . . . . . . . . . . . . . . . . . . Traps Extracted . | . . . . . . . . . . . . . . . . . . . . . . . . . . . . . . . . Installed . | . . . . . . . . . . . . . . . . . . . . . . . . . . . . . . . . Triggered 1 | . 1 . . . . . . . . . . . . . . . . . . . . . . . . . . . . . . Machines | -11 -10 -10 -10 -9 -8 -8 -8 -8 -7 -7 -7 -7 -7 -7 -7 -7 -6 -6 -6 -6 -5 -5 -4 -4 -4 -4 -4 -3 -2 -1 -1 ---------- Run | Yrd Mat Min Exi Min Mat Gar Mat Gar Fac Was Fac Gar Fac Gar Fac Gar Fac Gar Fac Gar Fac Gar Fac Ext Cet Arc Hub Res Res Acc Com Machines Disabled 73 | . 3 . . . . 3 1 2 2 . 6 4 . 3 2 3 . 5 2 3 . 4 1 1 . 4 12 1 5 4 2 Max in Single Turn 6 | . 1 . . . . 1 1 1 1 . 5 1 . 1 1 1 . 1 1 1 . 1 1 . . 1 6 1 1 1 1 Garrison Access 4 | . . . . . . . . . . . . . . . . . . . . . . . . . . . 1 . 2 1 . Garrison Relay 23 | . . . . . . 3 . 2 . . . 2 . 2 . 2 . 5 . 3 . 4 . . . . . . . . . Network Hub 1 | . . . . . . . . . . . . . . . . . . . . . . . . . . . 1 . . . . Machines Repaired . | . . . . . . . . . . . . . . . . . . . . . . . . . . . . . . . . Machines Dismantled . | . . . . . . . . . . . . . . . . . . . . . . . . . . . . . . . . Machines Sabotaged . | . . . . . . . . . . . . . . . . . . . . . . . . . . . . . . . . Overloaded Fab Kills . | . . . . . . . . . . . . . . . . . . . . . . . . . . . . . . . . Hacking | -11 -10 -10 -10 -9 -8 -8 -8 -8 -7 -7 -7 -7 -7 -7 -7 -7 -6 -6 -6 -6 -5 -5 -4 -4 -4 -4 -4 -3 -2 -1 -1 --------- Run | Yrd Mat Min Exi Min Mat Gar Mat Gar Fac Was Fac Gar Fac Gar Fac Gar Fac Gar Fac Gar Fac Gar Fac Ext Cet Arc Hub Res Res Acc Com Machines Accessed 94 | . 9 3 2 . 4 3 2 2 5 . 4 3 4 2 7 1 2 1 4 1 1 2 2 9 1 . 6 1 6 5 2 Terminals 65 | . 6 1 . . 2 3 1 2 3 . 2 3 2 2 5 1 1 1 1 1 . 2 . 9 1 . 5 1 4 4 2 Fabricators 2 | . . . . . . . . . . . . . 1 . . . . . 1 . . . . . . . . . . . . Repair Stations 6 | . 1 . . . . . . . 2 . . . . . 1 . . . . . . . 2 . . . . . . . . Recycling Units 3 | . 2 . . . . . . . . . 1 . . . . . . . . . . . . . . . . . . . . Scanalyzers 2 | . . . . . 1 . . . . . . . . . . . . . 1 . . . . . . . . . . . . Garrison Access 12 | . . . . . 1 . 1 . . . 1 . 1 . 1 . 1 . 1 . 1 . . . . . 1 . 2 1 . Total Hacks 185 | . 20 8 2 . 16 8 6 2 17 . 5 5 8 3 11 1 4 1 4 1 1 2 4 15 1 . 10 4 12 9 5 Successful 84 | . 11 4 2 . 7 . 3 1 8 . 2 2 4 2 5 1 3 1 1 . 1 1 3 8 . . 2 1 5 5 1 Failed 99 | . 8 4 . . 8 8 3 1 9 . 3 3 4 1 6 . 1 . 3 1 . 1 1 7 1 . 8 3 7 4 4 Catastrophic 28 | . 3 3 . . 3 1 . 1 3 . 1 1 . . . . . . 1 . . 1 . 2 . . 3 1 3 . 1 Database Lockouts 2 | . 1 . . . 1 . . . . . . . . . . . . . . . . . . . . . . . . . . Manual 66 | . 12 6 1 . 7 . 5 . 10 . 2 . 7 . 5 . . . 1 . . . . . 1 . 5 . 4 . . Terminals 137 | . 15 6 . . 7 8 3 2 11 . 3 5 5 3 8 1 3 1 1 1 . 2 . 15 1 . 9 4 10 8 5 Fabricators 3 | . . . . . . . . . . . . . 2 . . . . . 1 . . . . . . . . . . . . Repair Stations 15 | . 3 . . . . . . . 6 . . . . . 2 . . . . . . . 4 . . . . . . . . Recycling Units 3 | . 2 . . . . . . . . . 1 . . . . . . . . . . . . . . . . . . . . Scanalyzers 9 | . . . . . 8 . . . . . . . . . . . . . 1 . . . . . . . . . . . . Garrison Access 14 | . . . . . 1 . 3 . . . 1 . 1 . 1 . 1 . 1 . 1 . . . . . 1 . 2 1 . Terminal Hacks 49 | . 7 4 2 . 1 . 1 1 3 . . 2 2 2 1 1 2 1 . . . 1 . 8 . . 1 1 3 4 1 Record 1 | . . . 1 . . . . . . . . . . . . . . . . . . . . . . . . . . . . Part Schematic 1 | . . . . . . . . . . . . . . . . . . . . . . . . . . . . . 1 . . Robot Analysis 4 | . 1 2 . . 1 . . . . . . . . . . . . . . . . . . . . . . . . . . Prototype ID Bank 2 | . 1 . . . . . . . . . . . . . . . . . . . . . . 1 . . . . . . . Open Door 12 | . . 2 . . . . . . . . . . . . . . . . . . . . . 6 . . . . . 3 1 Level Access Points 2 | . . . . . . . . . . . . . . . . . . . . . . . . . . . . 1 1 . . Branch Access Points 2 | . . . . . . . . . . . . . . . . . 1 . . . . . . . . . . . 1 . . Emergency Access Points 5 | . . . . . . . . . . . . 1 . 1 . 1 . 1 . . . 1 . . . . . . . . . Terminal Index 4 | . 1 . . . . . . . 1 . . . . . . . . . . . . . . . . . 1 . . 1 . Recycling Unit Index 1 | . 1 . . . . . . . . . . . . . . . . . . . . . . . . . . . . . . Unreport Threat 5 | . . . . . . . 1 . 1 . . . 2 . 1 . . . . . . . . . . . . . . . . Locate Traps 3 | . 2 . . . . . . . . . . . . . . . . . . . . . . 1 . . . . . . . Hauler Manifests 2 | . 1 . . . . . . . . . . . . . . . 1 . . . . . . . . . . . . . . Zone Layout 1 | . . . . . . . . . 1 . . . . . . . . . . . . . . . . . . . . . . Garrison Registry 1 | . . . . . . . . 1 . . . . . . . . . . . . . . . . . . . . . . . Patrol Navigation 1 | . . . . . . . . . . . . 1 . . . . . . . . . . . . . . . . . . . Security Stations 1 | . . . . . . . . . . . . . . 1 . . . . . . . . . . . . . . . . . Derelict Proto ID Bank 1 | . . . 1 . . . . . . . . . . . . . . . . . . . . . . . . . . . . Fabricator Hacks . | . . . . . . . . . . . . . . . . . . . . . . . . . . . . . . . . Repair Station Hacks 9 | . 2 . . . . . . . 2 . . . . . 2 . . . . . . . 3 . . . . . . . . Scan Component 6 | . 1 . . . . . . . 2 . . . . . 1 . . . . . . . 2 . . . . . . . . Repair 3 | . 1 . . . . . . . . . . . . . 1 . . . . . . . 1 . . . . . . . . Recycling Unit Hacks . | . . . . . . . . . . . . . . . . . . . . . . . . . . . . . . . . Scanalyzer 5 | . . . . . 5 . . . . . . . . . . . . . . . . . . . . . . . . . . Insert Component 2 | . . . . . 2 . . . . . . . . . . . . . . . . . . . . . . . . . . Analyze 3 | . . . . . 3 . . . . . . . . . . . . . . . . . . . . . . . . . . Garrison Access Hacks 12 | . . . . . 1 . 1 . . . 1 . 1 . 1 . 1 . 1 . 1 . . . . . 1 . 2 1 . Unlock Access 8 | . . . . . 1 . 1 . . . 1 . 1 . 1 . 1 . 1 . 1 . . . . . . . . . . Seal Access 4 | . . . . . . . . . . . . . . . . . . . . . . . . . . . 1 . 2 1 . Unauthorized Hacks 9 | . 2 . . . . . 1 . 3 . 1 . 1 . 1 . . . . . . . . . . . . . . . . Terminals 4 | . . . . . . . . . 3 . . . . . 1 . . . . . . . . . . . . . . . . Track 1 | . . . . . . . . . 1 . . . . . . . . . . . . . . . . . . . . . . Botnet 3 | . . . . . . . . . 2 . . . . . 1 . . . . . . . . . . . . . . . . Fabricators 1 | . . . . . . . . . . . . . 1 . . . . . . . . . . . . . . . . . . Haulers 1 | . . . . . . . . . . . . . 1 . . . . . . . . . . . . . . . . . . Repair Stations . | . . . . . . . . . . . . . . . . . . . . . . . . . . . . . . . . Recycling Units 3 | . 2 . . . . . . . . . 1 . . . . . . . . . . . . . . . . . . . . Tunnel 3 | . 2 . . . . . . . . . 1 . . . . . . . . . . . . . . . . . . . . Scanalyzers . | . . . . . . . . . . . . . . . . . . . . . . . . . . . . . . . . Garrison Access 1 | . . . . . . . 1 . . . . . . . . . . . . . . . . . . . . . . . . Restock 1 | . . . . . . . 1 . . . . . . . . . . . . . . . . . . . . . . . . Data Cores Recovered 2 | . . . . . . . . . . . . . . . 2 . . . . . . . . . . . . . . . . Used . | . . . . . . . . . . . . . . . . . . . . . . . . . . . . . . . . Hacking Detections 71 | . 6 1 . . 3 3 2 2 5 . 2 3 4 2 7 . 2 . 3 1 1 2 2 6 1 . 5 1 3 2 2 Full Trace Events 11 | . 3 1 . . 2 1 . . 1 . . 1 . . . . . . . . . . . 1 . . . . . . 1 Feedback Events 1 | . . . . . . 1 . . . . . . . . . . . . . . . . . . . . . . . . . Corruption 1 | . . . . . . 1 . . . . . . . . . . . . . . . . . . . . . . . . . Feedback Blocked . | . . . . . . . . . . . . . . . . . . . . . . . . . . . . . . . . Robot Schematics Acquired . | . . . . . . . . . . . . . . . . . . . . . . . . . . . . . . . . Robots Built . | . . . . . . . . . . . . . . . . . . . . . . . . . . . . . . . . Authchips . | . . . . . . . . . . . . . . . . . . . . . . . . . . . . . . . . Time . | . . . . . . . . . . . . . . . . . . . . . . . . . . . . . . . . Total Robot Build Rating . | . . . . . . . . . . . . . . . . . . . . . . . . . . . . . . . . Part Schematics Acquired 2 | . . . . . 1 . . . . . . . . . . . . . . . . . . . . . . . 1 . . Parts Built . | . . . . . . . . . . . . . . . . . . . . . . . . . . . . . . . . Authchips . | . . . . . . . . . . . . . . . . . . . . . . . . . . . . . . . . Time . | . . . . . . . . . . . . . . . . . . . . . . . . . . . . . . . . Total Part Build Rating . | . . . . . . . . . . . . . . . . . . . . . . . . . . . . . . . . Parts Repaired 3 | . 1 . . . . . . . . . . . . . 1 . . . . . . . 1 . . . . . . . . Time 196 | . 26 . . . . . . . . . . . . . 62 . . . . . . . 108 . . . . . . . . Parts Recycled . | . . . . . . . . . . . . . . . . . . . . . . . . . . . . . . . . Recycled Matter . | . . . . . . . . . . . . . . . . . . . . . . . . . . . . . . . . Retrieved Matter . | . . . . . . . . . . . . . . . . . . . . . . . . . . . . . . . . Retrieved Components . | . . . . . . . . . . . . . . . . . . . . . . . . . . . . . . . . Parts Scanalyzed 2 | . . . . . 2 . . . . . . . . . . . . . . . . . . . . . . . . . . Part Schematics Acquired 1 | . . . . . 1 . . . . . . . . . . . . . . . . . . . . . . . . . . Parts Damaged . | . . . . . . . . . . . . . . . . . . . . . . . . . . . . . . . . Bothacking | -11 -10 -10 -10 -9 -8 -8 -8 -8 -7 -7 -7 -7 -7 -7 -7 -7 -6 -6 -6 -6 -5 -5 -4 -4 -4 -4 -4 -3 -2 -1 -1 ------------ Run | Yrd Mat Min Exi Min Mat Gar Mat Gar Fac Was Fac Gar Fac Gar Fac Gar Fac Gar Fac Gar Fac Gar Fac Ext Cet Arc Hub Res Res Acc Com Used RIF Installer 8 | . . . . . . 1 . 1 . . . 1 . 1 . 1 . 1 . 1 . 1 . . . . . . . . . Command Fork 2 | . . . . . . . . 1 . . . . . . . . . . . 1 . . . . . . . . . . . Threat Obfuscator 1 | . . . . . . . . . . . . . . . . 1 . . . . . . . . . . . . . . . Watcher Feeds 1 | . . . . . . . . . . . . . . . . . . 1 . . . . . . . . . . . . . Patrol Navigation 1 | . . . . . . . . . . . . 1 . . . . . . . . . . . . . . . . . . . Alert ID Control 1 | . . . . . . . . . . . . . . . . . . . . . . 1 . . . . . . . . . Structural Interface 1 | . . . . . . . . . . . . . . 1 . . . . . . . . . . . . . . . . . Robots Hacked 42 | . . . . . . . . . . . 2 . 1 . 1 . . 2 3 8 . 9 2 9 . . 2 1 2 . . Non-combat 13 | . . . . . . . . . . . 2 . 1 . 1 . . . 2 . . . . 3 . . 2 . 2 . . Combat 29 | . . . . . . . . . . . . . . . . . . 2 1 8 . 9 2 6 . . . 1 . . . Robot Hacks Applied 64 | . . . . . . . . . . . 2 . 6 . 5 . . 2 6 9 . 10 3 14 . . 4 1 2 . . parse_system 7 | . . . . . . . . . . . . . . . . . . . . . . 2 . 4 . . 1 . . . . no_distress 2 | . . . . . . . . . . . . . 1 . . . . . 1 . . . . . . . . . . . . drop_inventory 4 | . . . . . . . . . . . . . . . . . . . . . . . . 1 . . 1 . 2 . . ignore_parts 2 | . . . . . . . . . . . 2 . . . . . . . . . . . . . . . . . . . . purge_threat 15 | . . . . . . . . . . . . . 3 . 3 . . . 3 . . . . 4 . . 2 . . . . locate_traps 1 | . . . . . . . . . . . . . . . 1 . . . . . . . . . . . . . . . . block_reporting 2 | . . . . . . . . . . . . . 1 . 1 . . . . . . . . . . . . . . . . overload_power 4 | . . . . . . . . . . . . . . . . . . . 1 . . 2 . 1 . . . . . . . disable_weapons 1 | . . . . . . . . . . . . . . . . . . . . . . . . 1 . . . . . . . overwrite_iff 12 | . . . . . . . . . . . . . . . . . . . 1 5 . 4 2 . . . . . . . . formatsys_low 1 | . . . . . . . . . . . . . 1 . . . . . . . . . . . . . . . . . . formatsys_high 13 | . . . . . . . . . . . . . . . . . . 2 . 4 . 2 1 3 . . . 1 . . . Relay Couplers Released 103 | . . . . . . 14 4 8 . . . 8 . 9 . 8 . 24 . 12 . 14 . . . . . . . 2 . Machine Destruction 99 | . . . . . . 14 . 8 . . . 8 . 9 . 8 . 24 . 12 . 14 . . . . . . . 2 . Programmers 4 | . . . . . . . 4 . . . . . . . . . . . . . . . . . . . . . . . . Attached 26 | . . . . . . 1 . . 1 . . . 1 . 1 . . 4 2 6 . 4 2 4 . . . . . . . Fabnet Peak Effective % . | . . . . . . . . . . . . . . . . . . . . . . . . . . . . . . . . Robots Rewired 27 | . . . . . . . . . . . . . . 3 . . . 2 . 4 . 4 . 14 . . . . . . . Allies Hacked 1 | . . . . . . . . . . . . . . . . . . . . . . . . . . . 1 . . . . Hacks Repelled . | . . . . . . . . . . . . . . . . . . . . . . . . . . . . . . . . Allies | -11 -10 -10 -10 -9 -8 -8 -8 -8 -7 -7 -7 -7 -7 -7 -7 -7 -6 -6 -6 -6 -5 -5 -4 -4 -4 -4 -4 -3 -2 -1 -1 -------- Run | Yrd Mat Min Exi Min Mat Gar Mat Gar Fac Was Fac Gar Fac Gar Fac Gar Fac Gar Fac Gar Fac Gar Fac Ext Cet Arc Hub Res Res Acc Com Total Allies 107 | . . . . . . . . . . 20 . 2 1 3 . . . 6 2 15 . 16 4 28 5 . . 2 3 . . Largest Group 20 | . . . . . . . . . . 20 14 2 3 4 3 . . 5 4 5 3 8 2 17 19 12 6 2 3 . . Highest-Rated Group 1198 | . . . . . . . . . . 539 375 124 134 134 120 . . 193 184 137 92 288 168 872 1198 723 321 112 138 . . Highest-Rated Ally 159 | . . . . . . . . . . 35 31 62 62 62 40 . . 80 80 47 32 95 88 159 150 134 96 56 46 . . Total Orders 7 | . . . . . . . . . . . . . 2 1 1 . . . 1 . 1 1 . . . . . . . . . STAY 3 | . . . . . . . . . . . . . 1 1 . . . . 1 . . . . . . . . . . . . ROAM 2 | . . . . . . . . . . . . . . . 1 . . . . . 1 . . . . . . . . . . FOLLOW 1 | . . . . . . . . . . . . . 1 . . . . . . . . . . . . . . . . . . RETURN 1 | . . . . . . . . . . . . . . . . . . . . . . 1 . . . . . . . . . Ally Attacks 648 | . . . . . . . . . . 7 63 7 3 8 22 . . 30 24 77 1 90 45 112 77 31 37 10 4 . . Total Damage 20106 | . . . . . . . . . . 477 915 381 102 272 517 . . 988 759 1541 35 2712 1672 3480 3171 765 1848 373 98 . . Kills 122 | . . . . . . . . . . 2 6 2 2 2 5 . . 6 5 15 . 23 9 18 11 6 8 2 . . . Allies Corrupted 1 | . . . . . . . . . . . . . . . . . . . 1 . . . . . . . . . . . . Allies Melted 3 | . . . . . . . . . . 1 . . . . . . . . . . . 1 1 . . . . . . . . Intel | -11 -10 -10 -10 -9 -8 -8 -8 -8 -7 -7 -7 -7 -7 -7 -7 -7 -6 -6 -6 -6 -5 -5 -4 -4 -4 -4 -4 -3 -2 -1 -1 ------- Run | Yrd Mat Min Exi Min Mat Gar Mat Gar Fac Was Fac Gar Fac Gar Fac Gar Fac Gar Fac Gar Fac Gar Fac Ext Cet Arc Hub Res Res Acc Com Robot Analysis Total 4 | . 1 2 . . 1 . . . . . . . . . . . . . . . . . . . . . . . . . . Derelict Logs Recovered 2 | . . 2 . . . . . . . . . . . . . . . . . . . . . . . . . . . . . Drone Launches 5 | . . . . . . . . . . . . . . . . . . . . . . 5 . . . . . . . . . Drone Recoveries 3 | . . . . . . . . . . . . . . . . . . . . . . 3 . . . . . . . . . Exploration | -11 -10 -10 -10 -9 -8 -8 -8 -8 -7 -7 -7 -7 -7 -7 -7 -7 -6 -6 -6 -6 -5 -5 -4 -4 -4 -4 -4 -3 -2 -1 -1 ------------- Run | Yrd Mat Min Exi Min Mat Gar Mat Gar Fac Was Fac Gar Fac Gar Fac Gar Fac Gar Fac Gar Fac Gar Fac Ext Cet Arc Hub Res Res Acc Com Turns Passed 36457 | 113 1635 1102 1438 186 578 1990 179 1264 2194 888 964 2181 286 1534 973 1518 64 1648 787 2325 107 1784 473 1029 411 366 831 1771 2777 1791 1270 Spaces Moved 15533 | 72 717 428 650 49 226 996 73 559 828 298 350 1086 165 732 447 607 39 743 422 844 44 778 198 564 243 81 435 470 1336 641 412 Core 32 | 23 . . . . . . . . . . . . . . . . . . . . . . . . . . . . . . 9 Treads 14222 | 49 717 428 650 49 226 996 73 559 828 298 350 1086 165 732 447 607 39 743 422 844 44 282 . . 222 81 435 470 1336 641 403 Legs 1279 | . . . . . . . . . . . . . . . . . . . . . . 496 198 564 21 . . . . . . Wheels . | . . . . . . . . . . . . . . . . . . . . . . . . . . . . . . . . Hover . | . . . . . . . . . . . . . . . . . . . . . . . . . . . . . . . . Flight . | . . . . . . . . . . . . . . . . . . . . . . . . . . . . . . . . Fastest Speed 50 | 50 160 240 160 240 160 160 160 160 160 250 250 160 160 160 160 160 160 160 160 160 240 145 110 110 145 145 145 150 155 155 50 Average Speed 181 | 124 185 240 216 241 160 160 160 170 236 250 250 162 160 160 160 160 160 160 160 232 240 185 165 138 148 145 145 154 157 190 235 Slowest Speed 410 | 160 240 240 240 320 160 240 160 240 250 250 250 410 160 160 160 240 160 160 160 240 240 400 180 180 180 145 145 161 166 250 250 Overloaded Moves . | . . . . . . . . . . . . . . . . . . . . . . . . . . . . . . . . Propulsion Burnouts . | . . . . . . . . . . . . . . . . . . . . . . . . . . . . . . . . Robots Hopped 7 | . . . . . . . . . . . . . . . . . . 2 . 5 . . . . . . . . . . . Cave-ins Triggered 2 | . . . . . . . . . . . . . . . . . . . . . . . . . . . 1 . . 1 . Exploration Rate (%) 47 | 4 93 88 69 10 17 71 10 46 25 95 15 85 7 84 16 83 2 90 19 89 2 79 11 89 83 79 52 18 50 24 14 Regions Visited 31 Branch Regions 8 Pre-discovered Areas 5 | . 2 1 1 . . . . . . . 1 . . . . . . . . . . . . . . . . . . . . Known Exits Taken 10 | . . . . . 1 . 1 . . . 1 . 1 . 1 . 1 . 1 . 1 . . . . . . 1 1 . . Unknown Exits Taken 11 | 1 1 1 1 1 . . . . . . . . . . . . . . . . . . 1 1 1 1 1 . . 1 . Scrap Searched 3 | . . 2 . 1 . . . . . . . . . . . . . . . . . . . . . . . . . . . Spaces Dug 202 | . 16 . . 22 2 . . . 17 . . 40 . . . 9 . 43 2 . . . 3 . 1 . 7 2 21 16 1 Terrain Destroyed 906 | . 68 . . 23 33 . 11 . 53 5 25 59 2 27 . 9 . 104 3 3 . 13 37 18 1 6 194 4 73 123 12 Melee 2 | . . . . . 2 . . . . . . . . . . . . . . . . . . . . . . . . . . Projectile 263 | . 2 . . 1 . . 4 . 25 5 5 2 2 3 . . . 3 3 3 . 13 8 . 1 6 19 4 73 71 10 AOE 639 | . 66 . . 22 31 . 7 . 28 . 20 57 . 24 . 9 . 101 . . . . 29 18 . . 175 . . 52 . Terrain Rammed . | . . . . . . . . . . . . . . . . . . . . . . . . . . . . . . . . Walls Destroyed . | . . . . . . . . . . . . . . . . . . . . . . . . . . . . . . . . Machines Disabled . | . . . . . . . . . . . . . . . . . . . . . . . . . . . . . . . . Actions | -11 -10 -10 -10 -9 -8 -8 -8 -8 -7 -7 -7 -7 -7 -7 -7 -7 -6 -6 -6 -6 -5 -5 -4 -4 -4 -4 -4 -3 -2 -1 -1 --------- Run | Yrd Mat Min Exi Min Mat Gar Mat Gar Fac Was Fac Gar Fac Gar Fac Gar Fac Gar Fac Gar Fac Gar Fac Ext Cet Arc Hub Res Res Acc Com Total 22028 | 89 894 481 693 87 353 1260 110 786 984 420 416 1412 181 1015 655 1020 40 1120 505 1134 45 1035 309 788 294 293 546 1480 1925 1009 649 Wait 3654 | . 52 13 . 14 28 99 20 160 51 107 35 200 2 156 152 293 . 262 34 146 . 50 63 146 24 175 27 947 185 186 27 Move 15496 | 72 716 427 649 48 225 995 72 558 828 297 350 1085 165 731 447 606 39 738 422 834 44 777 197 563 242 80 433 469 1335 640 412 Hop 6 | . . . . . . . . . . . . . . . . . . 2 . 4 . . . . . . . . . . . Pick Up 240 | 8 21 8 15 . 12 19 1 8 10 4 1 24 1 9 3 2 . 7 1 5 . 18 2 . 8 3 1 4 22 7 16 Fast Attach 224 | 3 7 4 1 1 10 8 . 1 9 . 6 9 1 10 7 12 . 7 6 13 . 17 3 2 3 3 6 11 41 19 4 Attach 138 | 4 2 2 5 4 9 6 1 3 3 . 1 2 . 3 2 . 1 4 . 5 1 6 2 5 3 5 . 5 12 11 31 Detach 22 | . . 1 2 . 1 . . . . . . . . . . . . . . . . . 1 1 . 2 . 1 3 3 7 Swap 131 | . 10 . 1 3 . 11 2 2 14 . 1 5 2 4 4 4 . 7 9 3 . 12 1 1 1 2 8 3 14 5 2 Drop 379 | . 11 9 20 . 7 26 1 7 23 . 9 34 2 18 7 13 . 8 5 15 . 33 5 . 10 6 5 12 48 25 20 Fire 1474 | 2 72 17 . 17 51 79 13 47 37 10 12 53 7 43 31 75 . 60 27 56 . 83 34 48 3 17 57 28 259 108 128 Melee 22 | . . . . . 8 14 . . . . . . . . . . . . . . . . . . . . . . . . . Ram 2 | . . . . . . . . . . . . . . . . . . . . . . . . . . . . . 1 . 1 Kick 4 | . . . . . . . . . . . . . . . . . . . . . . 1 1 2 . . . . . . . Crush 49 | . 3 . . . 2 1 . . 5 . 1 . . 1 2 12 . 2 1 2 . . . . . . 8 . 5 3 1 Escape Stasis 59 | . . . . . . . . . 4 . . . . . . . . . . 10 . 22 . 20 . . 1 . . 2 . Rewire 128 | . . . . . . 2 . . . 2 . . 1 40 . 3 . 23 . 41 . 16 . . . . . . . . . Trap . | . . . . . . . . . . . . . . . . . . . . . . . . . . . . . . . . Miscellaneous . | . . . . . . . . . . . . . . . . . . . . . . . . . . . . . . . . Route ------- -11/Scrapyard -10/Materials (discovered 4 exits: [*Mat x2] / *Min x2) -10/Mines (discovered 3 exits: [*Mat x2] / *Exi) -10/Exiles -9/Mines -8/Materials -8/Garrison (discovered 3 exits: *Mat x3) -8/Materials -8/Garrison (discovered 3 exits: *Fac x3) -7/Factory -7/Waste -7/Factory -7/Garrison (discovered 3 exits: *Fac x3) -7/Factory -7/Garrison (discovered 4 exits: *Fac x3 / *Fac) -7/Factory -7/Garrison (discovered 3 exits: *Fac x3) -6/Factory (discovered 3 exits: Low x2 / Gar) -6/Garrison (discovered 3 exits: *Fac x3) -6/Factory (discovered 2 exits: *Fac / Gar) -6/Garrison (discovered 3 exits: *Fac x3) -5/Factory -5/Garrison (discovered 3 exits: *Fac x3) -4/Factory -4/Extension (discovered 2 exits: *Res / *Cet) -4/Cetus (discovered 2 exits: *Res / [*Arc]) -4/Archives (discovered 3 exits: *Res / *Hub x2) -4/Hub_04(d) (discovered 2 exits: *Res x2) -3/Research (discovered 3 exits: *Res x3) -2/Research (discovered 5 exits: *Acc x3 / Tes x2) -1/Access -1/Command History --------- Turn | Location | Event 5 | -11/Scrapyard | Discovered new exit (range 13) 114 | -11/Scrapyard | Entered Materials 244 | -10/Materials | Central database locked down 317 | -10/Materials | Build established: Mutant 779 | -10/Materials | Discovered new exit (range 5) 850 | -10/Materials | Discovered new exit (range 15) 871 | -10/Materials | Discovered new exit (range 10) 1236 | -10/Materials | Repaired Lgt. Treads 1315 | -10/Materials | Discovered new exit (range 15) 1749 | -10/Materials | Entered Mines 1761 | -10/Mines | Learned Materials garrison access intel 1767 | -10/Mines | Found the Drone Emporium 1776 | -10/Mines | Found Prototype Device 1776 | -10/Mines | Identified Thief Drone Bay 2314 | -10/Mines | Discovered new exit (range 8) 2490 | -10/Mines | Met a Derelict who couldn't figure out how to use a Trap Extractor 2666 | -10/Mines | Learned location of Zion (-7) 2695 | -10/Mines | Found a damaged Exp. Sensor Array with a note attached 2700 | -10/Mines | Found Prototype Device 2700 | -10/Mines | Identified Exp. Sensor Array 2741 | -10/Mines | Discovered new exit (range 6) 2839 | -10/Mines | Deemed a non-threat by the Exiles lab entrance 2842 | -10/Mines | Discovered new exit (range 5) 2851 | -10/Mines | Entered Exiles 2923 | -10/Exiles | Met 8R-AWN 2954 | -10/Exiles | Met EX-HEX 3052 | -10/Exiles | Met EX-DEC 3136 | -10/Exiles | Discovered new exit (range 10) 3921 | -10/Exiles | System corruption reached 10% 4006 | -10/Exiles | Met EX-BIN 4028 | -10/Exiles | Aligned with FarCom system 4030 | -10/Exiles | Given EX-Vault access code 4066 | -10/Exiles | Opened EX-Vault 4080 | -10/Exiles | Found XL Autogun Array 4122 | -10/Exiles | Warned to stay clear of 0b10 Research branches 4289 | -10/Exiles | Left Exiles lab with XL Autogun Array 4289 | -10/Exiles | Entered Mines 4294 | -9/Mines | Assembled infested the area 4315 | -9/Mines | Core integrity fell below 50% 4334 | -9/Mines | Core integrity fell below 20% 4373 | -9/Mines | Lost 4 parts (1p2n1w) 4438 | -9/Mines | Discovered new exit (range 12) 4475 | -9/Mines | Entered Materials 4475 | -8/Materials | Evolved 4 slots: Propulsion x2, Weapon x2 4476 | -8/Materials | Loaded intel: 1 garrison access location 4591 | -8/Materials | Lost 4 parts (1p1n2w) 4751 | -8/Materials | Central database locked down 4764 | -8/Materials | Garrison activated, responded to threat 4923 | -8/Materials | Build established: Skirmisher 5012 | -8/Materials | Identified exit to Garrison 5053 | -8/Materials | Entered Garrison 5170 | -8/Garrison | Triggered checkpoint 5256 | -8/Garrison | Discovered new exit (range 11) 5293 | -8/Garrison | Triggered checkpoint 5341 | -8/Garrison | Garrison Relay disabled 5487 | -8/Garrison | Triggered checkpoint 5570 | -8/Garrison | Discovered new exit (range 12) 5610 | -8/Garrison | Build established: Scavenger-Skirmisher 5675 | -8/Garrison | Installed Relay Interface Framework 5771 | -8/Garrison | Garrison Relay disabled 5855 | -8/Garrison | Triggered checkpoint 5899 | -8/Garrison | Spotted B-75 Beast 5982 | -8/Garrison | Destroyed B-75 Beast 6009 | -8/Garrison | Spotted B-75 Beast 6193 | -8/Garrison | Destroyed B-75 Beast 6339 | -8/Garrison | Discovered new exit (range 10) 6415 | -8/Garrison | Triggered checkpoint 6472 | -8/Garrison | Garrison Relay disabled 6641 | -8/Garrison | Triggered checkpoint 7043 | -8/Garrison | Entered Materials 7066 | -8/Materials | Garrison activated, responded to threat 7119 | -8/Materials | Identified exit to Garrison 7181 | -8/Materials | System corruption reached 10% 7222 | -8/Materials | Entered Garrison 7342 | -8/Garrison | Triggered checkpoint 7367 | -8/Garrison | Garrison Relay disabled 7414 | -8/Garrison | Triggered checkpoint 7415 | -8/Garrison | Triggered checkpoint 7514 | -8/Garrison | Discovered new exit (range 12) 7682 | -8/Garrison | Expanded RIF knowledge: Command Fork 7718 | -8/Garrison | Triggered checkpoint 7759 | -8/Garrison | Garrison Relay disabled 7815 | -8/Garrison | Triggered checkpoint 7878 | -8/Garrison | Discovered new exit (range 34) 7878 | -8/Garrison | Discovered new exit (range 55) 7878 | -8/Garrison | Discovered new exit (range 35) 8486 | -8/Garrison | Entered Factory 8486 | -7/Factory | Evolved 2 slots: Utility x2 8777 | -7/Factory | Build established: Scavenger-Gunner 9657 | -7/Factory | Build established: Bothacker-Gunner 10165 | -7/Factory | Discovered new exit (range 14) 10522 | -7/Factory | First assault squad dispatched 10680 | -7/Factory | Sucked down chute 10680 | -7/Factory | Entered Waste 10681 | -7/Waste | Joined by Warlord forces that had cleared the area 10903 | -7/Waste | Discovered new exit (range 15) 11140 | -7/Waste | A Compactor rumbled back to life 11140 | -7/Waste | Spotted C-40 Crusher 11140 | -7/Waste | Allies destroyed C-40 Crusher 11568 | -7/Waste | Entered Factory 11568 | -7/Factory | Accompanied by 14 allies 12172 | -7/Factory | P-60 Hacker assimilated allied LZ-ZNZ(s) 12311 | -7/Factory | Garrison activated, responded to threat 12481 | -7/Factory | Murdered 4 allies 12507 | -7/Factory | Lost 6 allies 12530 | -7/Factory | Identified exit to Garrison 12532 | -7/Factory | Entered Garrison 12638 | -7/Garrison | Build established: Bothacker-Skirmisher 12884 | -7/Garrison | Triggered checkpoint 12960 | -7/Garrison | Discovered new exit (range 14) 13189 | -7/Garrison | Triggered checkpoint 13212 | -7/Garrison | Destroyed 7 combat bots 13271 | -7/Garrison | Discovered new exit (range 10) 13390 | -7/Garrison | Triggered checkpoint 13490 | -7/Garrison | Expanded RIF knowledge: Patrol Navigation 13502 | -7/Garrison | Garrison Relay disabled 13719 | -7/Garrison | Triggered checkpoint 13826 | -7/Garrison | Discovered new exit (range 14) 13878 | -7/Garrison | Triggered checkpoint 13994 | -7/Garrison | Garrison Relay disabled 14066 | -7/Garrison | Found embedded Infiltrators 14608 | -7/Garrison | Triggered checkpoint 14713 | -7/Garrison | Entered Factory 14713 | -7/Factory | Accompanied by 2 allies 14999 | -7/Factory | Identified exit to Garrison 14999 | -7/Factory | Entered Garrison 14999 | -7/Garrison | Accompanied by 3 allies 15017 | -7/Garrison | Expanded RIF knowledge: Structural Interface 15091 | -7/Garrison | Triggered checkpoint 15130 | -7/Garrison | Garrison Relay disabled 15205 | -7/Garrison | Triggered checkpoint 15248 | -7/Garrison | Triggered checkpoint 15291 | -7/Garrison | Destroyed 10 combat bots 15367 | -7/Garrison | Discovered new exit (range 14) 15608 | -7/Garrison | Learned Factory security intel 15623 | -7/Garrison | Triggered checkpoint 15841 | -7/Garrison | Discovered new exit (range 14) 16219 | -7/Garrison | Triggered checkpoint 16229 | -7/Garrison | Discovered new exit (range 6) 16315 | -7/Garrison | Triggered checkpoint 16353 | -7/Garrison | Triggered checkpoint 16398 | -7/Garrison | Discovered new exit (range 11) 16533 | -7/Garrison | Entered Factory 16533 | -7/Factory | Accompanied by 3 allies 16694 | -7/Factory | Repaired Imp. Heavy Treads 17319 | -7/Factory | Build established: Pyromaniac-Gunner 17506 | -7/Factory | Identified exit to Garrison 17506 | -7/Factory | Entered Garrison 17720 | -7/Garrison | Triggered checkpoint 17741 | -7/Garrison | Core integrity fell below 50% 17876 | -7/Garrison | Triggered checkpoint 17986 | -7/Garrison | Discovered new exit (range 15) 18016 | -7/Garrison | Expanded RIF knowledge: Threat Obfuscation 18076 | -7/Garrison | Triggered checkpoint 18146 | -7/Garrison | Spotted B-75 Beast 18169 | -7/Garrison | Destroyed B-75 Beast 18306 | -7/Garrison | Garrison Relay disabled 18488 | -7/Garrison | Triggered checkpoint 18535 | -7/Garrison | Discovered new exit (range 13) 18883 | -7/Garrison | Destroyed 7 combat bots 18921 | -7/Garrison | Garrison Relay disabled 18967 | -7/Garrison | Discovered new exit (range 13) 19024 | -7/Garrison | Entered Factory 19024 | -6/Factory | Evolved 2 slots: Utility x2 19037 | -6/Factory | Identified exit to Lower Caves 19088 | -6/Factory | Identified exit to Garrison 19088 | -6/Factory | Entered Garrison 19172 | -6/Garrison | Triggered checkpoint 19211 | -6/Garrison | Destroyed 7 combat bots 19521 | -6/Garrison | Triggered checkpoint 19775 | -6/Garrison | Garrison Relay disabled 19778 | -6/Garrison | Garrison Relay disabled 19779 | -6/Garrison | Garrison Relay disabled 19781 | -6/Garrison | Garrison Relay disabled 19864 | -6/Garrison | Discovered new exit (range 5) 19954 | -6/Garrison | Triggered checkpoint 20012 | -6/Garrison | Triggered checkpoint 20086 | -6/Garrison | Build established: Botlord-Gunner 20164 | -6/Garrison | Discovered new exit (range 11) 20388 | -6/Garrison | Expanded RIF knowledge: Watcher Feeds 20400 | -6/Garrison | Discovered new exit (range 3) 20423 | -6/Garrison | Found embedded Infiltrators 20514 | -6/Garrison | Destroyed 8 combat bots 20606 | -6/Garrison | Triggered checkpoint 20670 | -6/Garrison | Garrison Relay disabled 20736 | -6/Garrison | Entered Factory 20736 | -6/Factory | Accompanied by 4 allies 20950 | -6/Factory | Garrison activated, responded to threat 21327 | -6/Factory | Garrison activated, responded to threat 21391 | -6/Factory | Discovered new exit (range 29) 21523 | -6/Factory | Identified exit to Garrison 21523 | -6/Factory | Entered Garrison 21698 | -6/Garrison | Lost 3 allies 21807 | -6/Garrison | Triggered checkpoint 21902 | -6/Garrison | Garrison Relay disabled 22006 | -6/Garrison | Discovered new exit (range 12) 22561 | -6/Garrison | Expanded RIF knowledge: Command Fork 22581 | -6/Garrison | Discovered new exit (range 13) 22675 | -6/Garrison | Triggered checkpoint 23071 | -6/Garrison | Triggered checkpoint 23102 | -6/Garrison | Garrison Relay disabled 23122 | -6/Garrison | Garrison Relay disabled 23319 | -6/Garrison | Triggered checkpoint 23511 | -6/Garrison | Lost 3 allies 23515 | -6/Garrison | Destroyed 8 combat bots 23649 | -6/Garrison | Triggered checkpoint 23814 | -6/Garrison | Discovered new exit (range 13) 23848 | -6/Garrison | Entered Factory 23848 | -5/Factory | Accompanied by 3 allies 23848 | -5/Factory | Evolved 2 slots: Utility x2 23955 | -5/Factory | Identified exit to Garrison 23955 | -5/Factory | Entered Garrison 23957 | -5/Garrison | Triggered checkpoint 24193 | -5/Garrison | Triggered checkpoint 24245 | -5/Garrison | Triggered checkpoint 24303 | -5/Garrison | Garrison Relay disabled 24412 | -5/Garrison | Triggered checkpoint 24448 | -5/Garrison | Lost 3 allies 24779 | -5/Garrison | Spotted B-75 Beast 24783 | -5/Garrison | Triggered checkpoint 24796 | -5/Garrison | Allies destroyed B-75 Beast 24810 | -5/Garrison | Expanded RIF knowledge: Alert ID Control 24839 | -5/Garrison | Triggered checkpoint 24870 | -5/Garrison | Lost 6 allies 24955 | -5/Garrison | Discovered new exit (range 11) 25021 | -5/Garrison | Triggered checkpoint 25095 | -5/Garrison | Spotted Executioner 25095 | -5/Garrison | Spotted Executioner 25100 | -5/Garrison | Garrison Relay disabled 25124 | -5/Garrison | Destroyed Executioner 25138 | -5/Garrison | Destroyed Executioner 25159 | -5/Garrison | Found Prototype Processor 25159 | -5/Garrison | Identified Exp. Targeting Computer 25204 | -5/Garrison | Found Prototype Processor 25218 | -5/Garrison | Found Exp. Targeting Computer 25219 | -5/Garrison | Found Adv. Kinecellerator 25389 | -5/Garrison | Discovered new exit (range 20) 25531 | -5/Garrison | Garrison Relay disabled 25629 | -5/Garrison | Discovered new exit (range 12) 25673 | -5/Garrison | Found embedded Infiltrators 25682 | -5/Garrison | Garrison Relay disabled 25739 | -5/Garrison | Entered Factory 25739 | -4/Factory | Accompanied by 2 allies 25739 | -4/Factory | Evolved 2 slots: Power x1, Utility x1 26028 | -4/Factory | First assault squad dispatched 26030 | -4/Factory | Repaired Helical Railgun 26096 | -4/Factory | Lost 3 allies 26159 | -4/Factory | Discovered new exit (range 30) 26212 | -4/Factory | Entered Extension 26406 | -4/Extension | Lost 6 allies 26449 | -4/Extension | Rescued a captive Derelict 26451 | -4/Extension | Rescued a captive Derelict 26452 | -4/Extension | Build established: Botlord-Mutant 26471 | -4/Extension | Rescued a captive Derelict 26555 | -4/Extension | Rescued A7 26726 | -4/Extension | Spotted B-86 Titan 26745 | -4/Extension | Spotted B-86 Titan 26750 | -4/Extension | Allies destroyed B-86 Titan 26763 | -4/Extension | Allies destroyed B-86 Titan 26802 | -4/Extension | Lost 4 allies 26928 | -4/Extension | Rescued a captive Derelict 26929 | -4/Extension | Rescued a captive Derelict 26974 | -4/Extension | Rescued a captive Derelict 26975 | -4/Extension | Rescued a captive Derelict 27096 | -4/Extension | Rescued a captive Derelict 27152 | -4/Extension | Discovered new exit (range 10) 27154 | -4/Extension | Discovered new exit (range 6) 27241 | -4/Extension | Entered Cetus 27241 | -4/Cetus | Accompanied by 17 allies (A7) 27246 | -4/Cetus | Acquired a Cetus Manufacturing Module code from A7 27247 | -4/Cetus | Spotted Cetus Guard 27247 | -4/Cetus | Spotted Cetus Guard 27251 | -4/Cetus | Spotted Cetus Guard 27251 | -4/Cetus | Spotted Cetus Guard 27261 | -4/Cetus | Allies destroyed Cetus Guard 27270 | -4/Cetus | Allies destroyed Cetus Guard 27275 | -4/Cetus | Allies destroyed Cetus Guard 27278 | -4/Cetus | Allies destroyed Cetus Guard 27300 | -4/Cetus | Lost 3 allies 27304 | -4/Cetus | Build established: Botlord-Gunner 27396 | -4/Cetus | Started Cetus Manufacturing Module 27421 | -4/Cetus | Manufactured an Enhanced Grunt 27446 | -4/Cetus | Manufactured an Enhanced Grunt 27471 | -4/Cetus | Manufactured an Enhanced Grunt 27496 | -4/Cetus | Manufactured an Enhanced Grunt 27501 | -4/Cetus | Escorted A7 to Cetus Mainframe 27510 | -4/Cetus | Discovered new exit (range 22) 27521 | -4/Cetus | Manufactured an Enhanced Grunt 27538 | -4/Cetus | Discovered new exit (range 27) 27542 | -4/Cetus | Spotted Cetus Guard 27542 | -4/Cetus | Spotted Cetus Guard 27542 | -4/Cetus | Spotted Cetus Guard 27542 | -4/Cetus | Spotted Cetus Guard 27566 | -4/Cetus | Allies destroyed Cetus Guard 27570 | -4/Cetus | Allies destroyed Cetus Guard 27570 | -4/Cetus | Allies destroyed Cetus Guard 27571 | -4/Cetus | Allies destroyed Cetus Guard 27579 | -4/Cetus | Met Revision 17 27595 | -4/Cetus | Lost 7 allies 27606 | -4/Cetus | Found Prototype Device 27652 | -4/Cetus | Entered Archives 27652 | -4/Archives | Accompanied by 12 allies (A7) 27657 | -4/Archives | Received a hacking code to weaken MAIN.C 27670 | -4/Archives | Identified Exp. Thermal Shield 27694 | -4/Archives | Lost 4 allies 27725 | -4/Archives | Discovered new exit (range 23) 27752 | -4/Archives | Discovered new exit (range 20) 27985 | -4/Archives | Discovered new exit (range 23) 27996 | -4/Archives | Build established: Botlord-Skirmisher 28018 | -4/Archives | Entered Hub_04(d) 28018 | -4/Hub_04(d) | Accompanied by 6 allies 28118 | -4/Hub_04(d) | Garrison activated, responded to threat 28186 | -4/Hub_04(d) | P-70 Sage assimilated allied Sentinel 7b 28197 | -4/Hub_04(d) | P-70 Sage assimilated allied Sentinel 7d 28249 | -4/Hub_04(d) | Lost 4 allies 28544 | -4/Hub_04(d) | Discovered new exit (range 22) 28684 | -4/Hub_04(d) | Discovered new exit (range 8) 28810 | -4/Hub_04(d) | Network Hub disabled 28846 | -4/Hub_04(d) | Crushed by falling debris 28847 | -4/Hub_04(d) | System corruption reached 10% 28849 | -4/Hub_04(d) | Entered Research 28849 | -3/Research | Evolved 2 slots: Propulsion x2 28877 | -3/Research | Lost 3 parts (2u1w) 29050 | -3/Research | Revision forces began assault on 0b10 29057 | -3/Research | Met up with Revision 17++ 29117 | -3/Research | Spotted B-86 Titan 29152 | -3/Research | Build established: Bothacker-Tank 29170 | -3/Research | Identified exit to Research 29550 | -3/Research | Research terminal network offline 30563 | -3/Research | Spotted Striker 30620 | -3/Research | Entered another Research area 30620 | -2/Research | Evolved 2 slots: Power x1, Utility x1 30872 | -2/Research | Spotted B-90 Cyclops 31239 | -2/Research | System corruption reached 10% 31248 | -2/Research | Found Quantum Capacitor 31396 | -2/Research | Lost 3 parts (1p1u1w) 31550 | -2/Research | Build established: Scavenger-Gunner 31956 | -2/Research | Allied Derelicts emerged from ambush trap array 32098 | -2/Research | P-80 Master assimilated allied RI-4WA(g) 32107 | -2/Research | P-80 Master assimilated allied 8Y-7T8(g) 32185 | -2/Research | Identified exit to Testing 32185 | -2/Research | Identified exit to Access 32577 | -2/Research | Found Quantum Capacitor 32768 | -2/Research | Found Unknown Protection 32768 | -2/Research | Identified Adv. Powered Armor 32775 | -2/Research | Found Adv. Powered Armor 32777 | -2/Research | Found Adv. Powered Armor 32805 | -2/Research | Found Adv. Powered Armor 32807 | -2/Research | Found Adv. Powered Armor 32810 | -2/Research | Found Adv. Powered Armor 32812 | -2/Research | Found Adv. Powered Armor 33225 | -2/Research | Found Prototype Device 33225 | -2/Research | Identified Exp. Phase Shifter 33258 | -2/Research | Build established: Gunner 33295 | -2/Research | Spotted B-90 Cyclops 33297 | -2/Research | System corruption reached 30% 33349 | -2/Research | Found Quantum Capacitor 33397 | -2/Research | Entered Access 33397 | -1/Access | Evolved 2 slots: Utility x2 33685 | -1/Access | Build established: Scavenger-Tank 33840 | -1/Access | Spotted B-99 Colossus 33877 | -1/Access | Destroyed B-99 Colossus 33948 | -1/Access | Found Prototype Ballistic Gun 33953 | -1/Access | Found Prototype Ballistic Gun 34376 | -1/Access | Build established: Scavenger-Gunner 34724 | -1/Access | Destroyed 8 combat bots 34897 | -1/Access | First assault squad dispatched 34983 | -1/Access | Crushed by falling debris 35036 | -1/Access | Destroyed 11 combat bots 35170 | -1/Access | Discovered new exit (range 7) 35188 | -1/Access | Entered Command 35285 | -1/Command | Build established: Scavenger-Tank 35428 | -1/Command | Lost 3 parts (2u1w) 35688 | -1/Command | Identified Multirail (x2) 36057 | -1/Command | Identified Exp. Core Analyzer 36070 | -1/Command | Spotted Combat Programmer 36071 | -1/Command | Spotted Combat Programmer 36073 | -1/Command | System corruption reached 10% 36073 | -1/Command | Destroyed Combat Programmer 36076 | -1/Command | Destroyed Combat Programmer 36086 | -1/Command | Spotted M Guard 36086 | -1/Command | Spotted M Guard 36096 | -1/Command | Destroyed M Guard 36101 | -1/Command | Destroyed M Guard 36101 | -1/Command | All MAIN.C guards destroyed 36111 | -1/Command | Found Corrupted Prototype Reactor 36111 | -1/Command | Identified Zero-point Reactor 36115 | -1/Command | Found Corrupted Prototype Device 36115 | -1/Command | Identified Thermal Barrier 36139 | -1/Command | Found Corrupted Zero-point Reactor 36143 | -1/Command | Found Corrupted Zero-point Reactor 36228 | -1/Command | Met MAIN.C 36234 | -1/Command | 0b10 Conduit disabled 36322 | -1/Command | System corruption reached 30% 36332 | -1/Command | Destroyed MAIN.C Shell 36335 | -1/Command | MAIN.C activated Command garrisons 36432 | -1/Command | Core integrity fell below 50% 36453 | -1/Command | Core integrity fell below 20% 36458 | -1/Command | Destroyed by H-88 Terminator with KE Penetrator Last Messages --------------- 36442_ Dropped Adv. Powered Armor. 36444_ System corrupted: Matter fused (-5). 36444_ Exp. Cooling System destroyed. 36444_ Penetrated by Slug. 36444_ Adv. Heat Sink destroyed. 36447_ Dropped Imp. Transmission Jammer. 36448_ Penetrated by Slug. 36448_ Exp. Core Analyzer destroyed. 36448_ Penetrated by Slug. 36448_ Acquired XL Autogun Subcomponent. 36449_ Slammed into B-74 Champion. 36450_ Acquired XL Autogun Subcomponent. 36452_ Acquired 4 matter. 36452_ Penetrated by Slug. 36455_ Critical hit (Burn: +37). 36455_ Penetrated by Slug. 36455_ XL Autogun Subcomponent destroyed. 36455_ System corrupted: XL Autogun Subcomponent jammed. 36458_ Penetrated by Slug. Map ----- +----------------------------------------------------+ | ?????????????????????????????????????????????????? | | ?????????????????????????????????????????????????? | | ?????????????????????????????????????????????????? | | ?????????????????????????????????????????????????? | | ?????????????????????????????????????????????????? | | ?????????????????????????????????????????????????? | | ?????????????????????????????????????????????????? | | ?????????????????????????????????????????????????? | | ?????????????????????????????????????????????????? | | ?????????????????????????????????????????????????? | | ?????????????????????????????????????????????????? | | ?????????????????????????????????????????????????? | | ?????????????????????????????????????????????????? | | ?????????????????????????????????????e???????????? | | ?????????????????????????????????????b???????????? | | ?????????????????????????????????????????????????? | | ?????????????????????????????????????????????????? | | ?????????????????????????????????????????????????? | | ???????????????????????????????????????g?????????? | | ?##########???????????????????????????l??????????? | | """ ??????????????????????????d???????????? | | " ??????????????????????????????????????? | | " #######################???????????????? | | " ; *M! |gh! |% #???????????????? | | " ; !*%!! %%%bhx%! #???b???????????? | | / !]* !!@ggpgh%%#???d???????????? | | ################### %#???i?g?????????? | | ??????????????????# %#???????????????? | | ???????????????????# ##?#d###?#####?## | | "???????????????????# T#?# g#?# #?# | | """????????????????????#+++#### ### ###! | | """""""????????????????????# C c h *= | | """"""""?????????????????????# g | | ?????????????????????????????#% g ] | | ?????????????????????????????# ! | | ?????????????????????????????# c | | ?????????????????????????????# ### s### ### | | ?????????????????????????????######?# #?# #?# | | ????????????????????????????????????#e###?#####?## | | ?????????????????????????????????????????????????? | | ?????????????????????????????????????????????????? | | ?????????????????????????????????????????????????? | | ?????????????????????????????????????????????????? | | ?????????????????????????????????????????????????? | | ?????????????????????????????????????????????????? | | ?????????????????????????????????????????????????? | | ?????????????????????????????????????????????????? | | ?????????????????????????????????????????????????? | | ?????????????????????????????????????????????????? | | ?????????????????????????????????????????????????? | +----------------------------------------------------+ Best States ------------- Heat Dissipation 147 Coolant Potential 100 Energy Generation 85 Energy Capacity 1350 Matter Stores 300 Matter Capacity 300 Sight Range 23 Terrain Scan Density 10 Jamming Range 14 Cloak Strength 3 Power Amplification 30 Additional Mass Support 20 EM Shielding 3 Corruption Block 19 Armor Coverage 1600 Resistance: TH 50 Core Shielding 20 Power Shielding 90 Point Defense Rating 240 Weapon Cycling 25 Phase Shifting 20 Evasion (%) 60 Targeting Accuracy 20 Core Analysis 8 Recoil Reduction 6 Particle Charging 25 Kinecelleration 50 Offensive Hacking 14 Relay Coupler Types 4 Relay Coupler Value 137 Item Schematics ----------------- Hacking Suite | -8/Materials | Scanalyzed Enh. Nova Cannon | -2/Research | Hacked Robot Schematics ------------------ None Fabricated ------------ Nothing Alien Tech Used ----------------- None Achievements -------------- None Challenges ------------ None Game ------ Seed CryofiberDroneArmor Manual? 0 Play Time 04:13:49 Cumulative 811.9 hours Start 2024.06.02 @ 10:34:05 End 2024.06.02 @ 15:11:13 Sessions 1 Manual Loads 0 Difficulty Rogue Special Mode None Game No. 516 Rogue 509 Adventurer 0 Explorer 7 Win Type - Total 55 Types 20/5/19/2/0/1/6/1/1 Lore% 90 Gallery% 96 Achievement% 84 Wizard Run 0 Options --------- Layout 2 ASCII 0 Keyboard 0 Movement Numpad Keybinds 0 Fullscreen 1 Font 24/Tamsyn Map View 50x44 Zoom Use 0% Tactical HUD 1 Map Filters NONE Filters NONE Steam 1 RUN: 3e88f53b-7def-4c0f-bd1b-21345ddd5d5f